Cogmind - Beta 15 @@@ ROGUE MODE // 2025.05.18 @ 16:40:36 Player: MolePlayingNice Result: Destroyed by S-43 Plague with Heavy Machine Gun Performance ------------- Evolutions (8) 4000 Regions Visited (32) 6400 Robots Destroyed (332) 1660 Value Destroyed (15793) 15793 Prototype IDs (206) 4120 Alien Tech Used (7) 1400 Bonus (12246) 12246 TOTAL SCORE: 45619 Bonus ------- High Alert Combat Kills 5166 Follower Combat Kills 3917 Network Hubs Disabled 600 Registered with UFD 300 Met Optimus in HQ 500 Met Zhirov 300 MAIN.C Attacked Warlord 500 Built Enhanced Grunts 300 Scanned by Researcher 500 Met Optimus at Protoforge 1000 Friendly Fire -837 Cogmind --------- Core Integrity 0/1450 Matter 86/300 Energy 292/1020 System Corruption 24% Temperature Cool (3) Movement Hovering (98) Ox1 Location -2/Protoforge Parts ------- > --- POWER (2) -------- Concept Zero-point Core > --- PROPULSION (7) --- Concept Combat Aerolev Unit Concept Gyrokinetic System Concept Gyrokinetic System > --- UTILITY (10) ----- Concept Antigrav Storage Unit Concept Chromion Battery Concept Melee Reflex Suite Concept Projectile Intercept Suite Experimental Core Analyzer Graphene Brace Concept Navigation Harness > --- WEAPON (5) ------- Cooled Directed Potential Cannon Nanosword > --- INVENTORY (25) --- Experimental Antimatter Reactor Hybrid Graviton Reactor Concept Chromion Battery (800) Concept Impact Drone Bay (1/6) Enhanced Nova Cannon Concept XC Strikerail Mini Smartbomb Launcher Nanosword Sigix Broadsword Sigix Broadsword Peak State ------------ > --- POWER ------------ Hybrid Graviton Reactor Concept Zero-point Core > --- PROPULSION ------- Improved Antigrav System Improved Antigrav System Experimental Antigrav System Concept Combat Aerolev Unit Concept Combat Aerolev Unit Concept Gyrokinetic System Concept Gyrokinetic System > --- UTILITY ---------- Concept Antigrav Storage Unit Experimental Melee Analysis Suite Concept Melee Reflex Suite Concept Projectile Intercept Suite Experimental Core Analyzer Experimental Actuator Array Graphene Brace Concept Beam Splitter Concept Network Penetrator Concept Network Penetrator > --- WEAPON ----------- Nanosword Sigix Broadsword Sigix Broadsword > --- INVENTORY -------- Experimental Antimatter Reactor Concept Chromion Battery Concept Chromion Battery Experimental Core Analyzer Concept Impact Drone Bay Transdimensional Reconstructor Concept Navigation Harness Enhanced Nova Cannon Cooled Directed Potential Cannon Concept XC Strikerail Mini Smartbomb Launcher Nanosword UFD Drillbomb [Rating: 294] Favorites ----------- Power Light Antimatter Reactor Engine Light Deuterium Engine Power Core Light Fission Core Reactor Light Antimatter Reactor Propulsion Cooled Cesium-ion Thruster Treads Light Treads Leg Aluminum Leg Hover Unit Concept Gyrokinetic System Flight Unit Cooled Cesium-ion Thruster Utility Experimental Hacking Suite Device Long-range Sensor Array Storage Large Storage Unit Processor Experimental Signal Interpreter Hackware Experimental Hacking Suite Protection Improved Light Armor Plating Weapon Nanosword Energy Gun Small Laser Energy Cannon Enhanced Nova Cannon Ballistic Gun Improved Assault Rifle Ballistic Cannon Bore Cannon Launcher Mini Grenade Launcher Impact Weapon Hammer Slashing Weapon Nanosword Piercing Weapon Kinetic Spear Special Melee Weapon Improved Datajack Build | -11 -10 -10 -9 -9 -9 -9 -6 -6 -6 -6 -6 -6 -6 -5 -5 -5 -5 -5 -5 -4 -4 -4 -4 -4 -4 -4 -3 -3 -3 -2 -2 -2 ------- Run | Yrd Mat Min Mat Sto Rec Scr Fac Was Fac Ext Cet Arc Hub Fac Was Fac Upp Upp War Pro Fac Was Fac Upp Upp Zhi Pro Res Tes Res Qua Frg Slots Evolved 16 | . . . 2 . . . 6 . . . . . . 2 . . . . . . 2 . . . . . . 2 . 2 . . Power 1 | . . . . . . . . . . . . . . . . . . . . . 1 . . . . . . . . . . . Propulsion 5 | . . . 1 . . . 1 . . . . . . 1 . . . . . . 1 . . . . . . . . 1 . . Utility 8 | . . . 1 . . . 5 . . . . . . 1 . . . . . . . . . . . . . 1 . . . . Weapon 2 | . . . . . . . . . . . . . . . . . . . . . . . . . . . . 1 . 1 . . Parts Attached 297 | . 14 6 30 14 4 12 36 . 16 5 2 2 2 15 . 24 . 1 5 . 12 . 12 . . 4 . 14 5 5 5 52 Power 37 | . 2 1 2 3 . 1 1 . 2 . 1 . . 3 . 2 . . . . 5 . 2 . . 1 . 1 . 1 2 7 Engine 13 | . 1 1 1 2 . . 1 . 2 . 1 . . 1 . . . . . . 3 . . . . . . . . . . . Core 8 | . 1 . 1 . . 1 . . . . . . . 2 . 2 . . . . . . . . . . . . . . . 1 Reactor 16 | . . . . 1 . . . . . . . . . . . . . . . . 2 . 2 . . 1 . 1 . 1 2 6 Propulsion 60 | . 4 2 6 5 3 3 4 . 3 1 . . . 1 . 3 . . 1 . . . 1 . . 3 . 4 . 2 1 13 Treads 19 | . 4 2 6 4 3 . . . . . . . . . . . . . . . . . . . . . . . . . . . Leg 1 | . . . . . . . 1 . . . . . . . . . . . . . . . . . . . . . . . . . Wheel . | . . . . . . . . . . . . . . . . . . . . . . . . . . . . . . . . . Hover 12 | . . . . . . . . . . . . . . . . . . . . . . . . . . . . . . . . 12 Flight 28 | . . . . 1 . 3 3 . 3 1 . . . 1 . 3 . . 1 . . . 1 . . 3 . 4 . 2 1 1 Utility 137 | . 4 2 8 2 1 5 20 . 9 3 1 1 1 9 . 17 . 1 2 . 4 . 7 . . . . 7 5 2 1 25 Device 52 | . 1 2 2 1 . 3 3 . 5 2 . 1 1 4 . 7 . 1 . . 1 . 3 . . . . 1 2 2 . 10 Storage 14 | . 3 . 1 . . 1 3 . . . . . . 1 . 1 . . . . . . 1 . . . . . . . . 3 Processor 19 | . . . 1 . . . 3 . . . . . . 1 . 3 . . 1 . . . . . . . . . 1 . 1 8 Hackware 37 | . . . . . . 1 9 . 4 . . . . 2 . 6 . . 1 . 1 . 3 . . . . 6 2 . . 2 Protection 15 | . . . 4 1 1 . 2 . . 1 1 . . 1 . . . . . . 2 . . . . . . . . . . 2 Artifact . | . . . . . . . . . . . . . . . . . . . . . . . . . . . . . . . . . Weapon 63 | . 4 1 14 4 . 3 11 . 2 1 . 1 1 2 . 2 . . 2 . 3 . 2 . . . . 2 . . 1 7 Energy Gun 13 | . 4 . 2 1 . 1 2 . . . . 1 . . . . . . 1 . . . . . . . . . . . . 1 Energy Cannon 8 | . . . 2 . . . 1 . 1 . . . . 1 . 1 . . 1 . . . . . . . . . . . . 1 Ballistic Gun 15 | . . . 8 2 . 1 1 . . . . . . . . . . . . . . . . . . . . . . . . 3 Ballistic Cannon 2 | . . . 1 . . . . . . 1 . . . . . . . . . . . . . . . . . . . . . . Launcher 5 | . . 1 1 . . 1 . . . . . . . . . . . . . . . . . . . . . 1 . . . 1 Special Weapon . | . . . . . . . . . . . . . . . . . . . . . . . . . . . . . . . . . Impact Weapon 1 | . . . . 1 . . . . . . . . . . . . . . . . . . . . . . . . . . . . Slashing Weapon 13 | . . . . . . . 3 . 1 . . . 1 . . 1 . . . . 2 . 2 . . . . 1 . . 1 1 Piercing Weapon 5 | . . . . . . . 3 . . . . . . 1 . . . . . . 1 . . . . . . . . . . . Special Melee Weapon 1 | . . . . . . . 1 . . . . . . . . . . . . . . . . . . . . . . . . . Unidentified Prototypes 33 | . . . 3 5 . . 8 . 1 . 1 . . 2 . 2 . 1 4 . . . . . . 1 . . . 1 1 3 Corrupted Parts 1 | . . . . . . . . . . . . . . . . . . . . . . . . . . . . 1 . . . . System Corruption 4 | . . . . . . . . . . . . . . . . . . . . . . . . . . . . 4 . . . . Parts Lost 36 | . 4 . 1 . . . 2 . 1 1 . . . 5 . 1 . . . . 2 . . . . . . . . . . 19 Power 7 | . 1 . 1 . . . . . 1 . . . . 2 . . . . . . 2 . . . . . . . . . . . Propulsion 8 | . 1 . . . . . . . . . . . . 1 . . . . . . . . . . . . . . . . . 6 Utility 17 | . . . . . . . 2 . . 1 . . . 2 . 1 . . . . . . . . . . . . . . . 11 Weapon 4 | . 2 . . . . . . . . . . . . . . . . . . . . . . . . . . . . . . 2 Highest Loss Streak 3 | . 2 . 1 . . . 1 . 1 1 . . . 3 . 1 . . . . 1 . . . . . . . . . . 3 To Critical Strikes . | . . . . . . . . . . . . . . . . . . . . . . . . . . . . . . . . . Average Backups 13 | . 8 14 14 22 24 23 6 6 5 5 5 6 6 7 9 8 8 8 8 9 8 9 9 13 14 14 14 13 13 12 12 17 Power . | . 1 3 1 1 2 1 . . . . . . . . . . . . . . . . . . 1 . . . . . . . Propulsion 1 | . 2 2 2 6 7 6 . . . 1 1 1 1 . . . . . . 1 . . . . . . . . . . . . Utility 7 | . 1 3 4 9 9 10 3 4 3 2 1 2 2 4 6 6 6 7 6 6 6 8 8 11 11 11 11 9 9 9 9 11 Weapon 3 | . 3 5 6 5 4 3 1 2 2 2 3 3 2 2 3 1 2 1 1 2 1 1 1 2 2 2 2 1 2 2 1 3 Tool/Special . | . . . . . . . . . . . . . . . . . . . . . . . . . . . . . . . . . Unused Backups 58 | . 5 2 12 2 1 4 3 . 2 1 . . . . 2 1 . . . . 1 . 1 1 . . 1 2 . . 5 12 Power 4 | . 1 2 . . . . . . . . . . . . . . . . . . . . . . . . . . . . . 1 Propulsion 12 | . 2 . 6 1 . . 1 . . . . . . . . . . . . . . . 1 . . . . . . . . 1 Utility 29 | . 2 . 2 1 1 3 . . 1 1 . . . . 2 1 . . . . 1 . . 1 . . 1 2 . . 1 9 Weapon 7 | . . . 4 . . . 1 . . . . . . . . . . . . . . . . . . . . . . . 1 1 Tool/Special 6 | . . . . . . 1 1 . 1 . . . . . . . . . . . . . . . . . . . . . 3 . Average Slot Usage (%) 95 | . 91 99 97 100 99 89 97 100 98 99 100 100 100 96 100 98 100 94 98 100 99 100 99 100 100 100 100 97 94 94 90 85 Engine 2 | . 7 . 2 6 . . 5 6 5 6 6 6 6 4 5 1 . . . . 5 5 2 . . . . . . . . . Core 1 | . 2 13 8 . . . . . . . . . . . . 3 5 5 5 5 2 . . . . . . . . . . 1 Reactor 3 | . . . . 4 11 10 . . . . . . . . . . . . . . 2 5 7 10 10 10 10 9 9 8 8 6 Treads 9 | . 24 28 33 33 32 30 . . . . . . . . . . . . . . . . . . . . . . . . . . Hover 2 | . . . . . . . . . . . . . . . . . . . . . . . . . . . . . . . . 18 Flight 15 | . . . . . . 2 25 26 26 26 26 26 26 27 29 28 29 27 27 27 29 30 30 30 30 30 30 24 22 24 23 6 Device 9 | . . 13 9 1 . 10 12 6 11 7 6 6 10 10 11 8 11 10 6 5 6 10 8 10 9 10 10 9 12 11 12 12 Storage 7 | . 23 14 11 11 11 10 6 6 6 6 6 6 6 5 5 5 5 5 5 5 5 5 5 5 5 5 5 4 4 4 4 4 Processor 5 | . . . . . . . 6 6 6 6 6 6 6 5 5 7 5 5 9 11 10 10 10 10 10 10 10 9 9 8 8 13 Hackware 11 | . . . . . . . 23 26 26 26 26 26 26 22 23 23 23 22 22 22 20 20 20 20 20 20 20 18 16 12 11 1 Protection 5 | . . . 9 20 22 10 1 6 . 4 6 6 1 4 5 4 4 5 5 5 2 . . . . . . 3 1 4 4 3 Energy Gun 1 | . 23 21 3 . . . . . . . . . . . . . . . . . . . . . . . . . . . . . Ballistic Gun 3 | . 4 . 18 21 21 1 . . . . . . . . . . . . . . . . . . . . . . . . . . Slashing Weapon 4 | . . . . . . . 1 . . . . . . . . . . . . . 3 10 12 15 15 15 15 17 17 19 16 14 Piercing Weapon 4 | . . . . . . . 7 13 12 12 12 12 12 9 11 10 11 11 11 11 8 5 2 . . . . . . . . . Peak Build Rating 294 | . 10 15 24 27 28 30 78 78 90 91 94 92 88 106 99 118 110 121 124 124 141 141 162 162 163 165 165 186 189 208 219 294 Average Rating 105 | . 7 10 20 23 26 24 57 78 81 88 87 90 87 96 98 105 109 110 120 124 134 141 149 161 161 163 164 181 186 200 215 252 On Entrance 102 | 6 6 10 12 21 27 21 27 78 78 90 86 88 88 88 98 99 110 110 110 124 124 141 141 161 162 162 165 165 185 186 208 219 Naked Turns 1 | . . . . . . 1 . . . . . . . . . . . . . . . . . . . . . . . . . . Heaviest Build 132 | 14 92 31 40 110 110 108 20 20 20 19 26 23 23 30 26 28 28 33 29 27 37 37 52 52 57 52 52 66 59 69 67 132 Greatest Support 134 | 20 40 44 67 60 63 60 22 22 32 32 23 23 32 43 29 43 31 34 44 44 50 50 70 59 71 59 59 76 76 84 83 134 Greatest Overweight (x) 7 | . 4 . . 1 1 1 6 . . 1 1 . . 7 . 1 . 1 1 . . . . . . . . 1 . . 1 2 Average Overweight (x) . | . . . . . 1 . . . . . . . . . . . . . . . . . . . . . . . . . . . Largest Inventory Capacity 25 | . 25 15 15 25 25 25 8 8 8 8 8 8 8 10 10 10 10 10 10 10 10 10 15 15 15 15 15 15 15 15 15 25 Average Capacity 15 | . 16 15 15 23 25 23 8 8 8 8 8 8 8 9 10 10 10 10 10 10 10 10 12 15 15 15 15 15 15 15 15 21 Most Carried 25 | . 15 15 15 25 25 25 8 8 8 8 8 8 8 10 10 10 10 10 10 10 10 10 15 15 15 15 15 15 15 15 15 25 Average Carried 14 | . 8 14 14 22 24 23 7 8 7 7 7 8 7 8 9 9 9 9 9 10 9 10 10 14 15 15 14 14 14 14 14 20 Final Capacity 25 | 8 15 15 15 25 25 8 8 8 8 8 8 8 8 10 10 10 10 10 10 10 10 10 15 15 15 15 15 15 15 15 15 25 Final Carried 25 | 6 15 15 15 25 24 8 8 8 8 7 8 8 8 10 10 10 10 10 10 10 10 10 14 15 15 15 15 15 15 15 15 12 Class Distribution -------------------- 36% | Wizard-Sprinter 27% | Mutant 6% | Hacker-Sprinter 5% | Machinist-Ninja 3% | Machinist-Gladiator 3% | Machinist-Scout 3% | Scavenger-Mutant 3% | Wizard-Mutant Dominant Class ---------------- Mutant | -10/Materials Mutant | -10/Mines Mutant | -9/Materials Mutant | -9/Storage Mutant | -9/Recycling Mutant | -9/Scraptown Hacker-Sprinter | -6/Factory Wizard-Sprinter | -6/Waste Wizard-Sprinter | -6/Factory Wizard-Sprinter | -6/Extension Wizard-Sprinter | -6/Cetus Wizard-Sprinter | -6/Archives Wizard-Sprinter | -6/Hub_04(d) Wizard-Sprinter | -5/Factory Wizard-Sprinter | -5/Waste Wizard-Sprinter | -5/Factory Wizard-Sprinter | -5/Upper Caves Wizard-Sprinter | -5/Upper Caves Wizard-Sprinter | -5/Warlord Wizard-Sprinter | -4/Proximity Caves Wizard-Sprinter | -4/Factory Wizard-Sprinter | -4/Waste Wizard-Sprinter | -4/Factory Wizard-Sprinter | -4/Upper Caves Wizard-Sprinter | -4/Upper Caves Wizard-Sprinter | -4/Zhirov Wizard-Sprinter | -3/Proximity Caves Wizard-Sprinter | -3/Research Wizard-Sprinter | -3/Testing Machinist-Ninja | -2/Research Machinist-Ninja | -2/Quarantine Machinist-Gladiator | -2/Protoforge Resources | -11 -10 -10 -9 -9 -9 -9 -6 -6 -6 -6 -6 -6 -6 -5 -5 -5 -5 -5 -5 -4 -4 -4 -4 -4 -4 -4 -3 -3 -3 -2 -2 -2 ----------- Run | Yrd Mat Min Mat Sto Rec Scr Fac Was Fac Ext Cet Arc Hub Fac Was Fac Upp Upp War Pro Fac Was Fac Upp Upp Zhi Pro Res Tes Res Qua Frg Matter Collected 11883 | 167 667 131 1023 547 226 102 754 . 512 212 194 57 90 290 . 678 16 80 . 90 528 . 419 40 40 50 10 360 350 156 159 3935 Remotely . | . . . . . . . . . . . . . . . . . . . . . . . . . . . . . . . . . Salvage Created 17114 | . 672 62 1364 727 373 . 698 . 636 309 . 66 214 648 . 773 31 163 . . 675 . 742 . 50 354 . 423 427 550 159 6998 Parts 830 | . 32 7 75 40 21 . 41 . 24 18 . 6 5 26 . 38 3 11 . . 42 . 33 . 5 4 . 15 16 32 7 329 Haulers Intercepted 17 | . 2 . 6 6 . . 1 . . . . . . 1 . . . . . . 1 . . . . . . . . . . . Recyclers Shooed 5 | . 3 . 1 1 . . . . . . . . . . . . . . . . . . . . . . . . . . . . Parts Field Recycled . | . . . . . . . . . . . . . . . . . . . . . . . . . . . . . . . . . Retrieved Matter . | . . . . . . . . . . . . . . . . . . . . . . . . . . . . . . . . . Parts Self-Destructed 24 | . . . . . . . . . . . . . . . . . 3 12 . . . . . . 5 4 . . . . . . Prevented . | . . . . . . . . . . . . . . . . . . . . . . . . . . . . . . . . . Kills | -11 -10 -10 -9 -9 -9 -9 -6 -6 -6 -6 -6 -6 -6 -5 -5 -5 -5 -5 -5 -4 -4 -4 -4 -4 -4 -4 -3 -3 -3 -2 -2 -2 ------- Run | Yrd Mat Min Mat Sto Rec Scr Fac Was Fac Ext Cet Arc Hub Fac Was Fac Upp Upp War Pro Fac Was Fac Upp Upp Zhi Pro Res Tes Res Qua Frg Combat Hostiles Destroyed 202 | . 13 4 20 8 4 . 12 . 1 2 . . 1 3 . 3 1 2 . . 5 . 2 . 1 . . . 1 3 . 116 Melee 117 | . . . . . . . 4 . 1 2 . . 1 3 . 3 1 1 . . 5 . 2 . 1 . . . 1 3 . 89 Guns 42 | . 12 1 18 7 4 . . . . . . . . . . . . . . . . . . . . . . . . . . . Cannons 2 | . . . . . . . . . . . . . . . . . . . . . . . . . . . . . . . . 2 AOE 41 | . 1 3 2 1 . . 8 . . . . . . . . . . 1 . . . . . . . . . . . . . 25 Classes Destroyed 28 | . 6 . 3 1 . . 1 . 1 1 . . . 1 . . 1 1 . . 1 . . . . . . . 1 . . 10 Worker 5 | . 1 . 1 1 . . . . . . . . . . . . . . . . 1 . . . . . . . . . . 1 Builder 10 | . . . . 1 . . . . . . . . . . . . . . . . 1 . 1 . . . . . . 7 . . Tunneler 2 | . . . . . . . . . . . . . . . . . . . . . 2 . . . . . . . . . . . Hauler 17 | . 2 . 6 6 . . 1 . . . . . . 1 . . . . . . 1 . . . . . . . . . . . Recycler 23 | . . . 2 . 3 . . . 3 1 . . 1 2 . 4 . . . . . . 3 . . . . 2 2 . . . Minesweeper 3 | . . . . . . . . . . . . . . . . . 1 2 . . . . . . . . . . . . . . Mechanic 5 | . . . . . . . . . 1 . . . . . . . . . . . . . . . . . . 1 . . . 3 Operator 15 | . 1 . . 1 . . 3 . 1 . . 2 . 1 . . . . . . . . . . . . . 2 2 1 1 . Drone 19 | . . . . . . . . . . . . . . 1 . 1 1 . . . . . . . . . . . 1 1 . 14 Watcher 52 | . 2 . 3 1 . . 7 . 4 2 . . 1 4 . 6 . . . . 5 . 6 . . . . 1 . 6 3 1 Swarmer 21 | . 2 3 2 . . . 7 . . . . . . . . . . 1 . . . . . . . . . . . . . 6 Saboteur 4 | . . . . . . . . . . . . . . . . . . . . . . . . . . . . . . . . 4 Grunt 44 | . 11 1 10 4 . . . . . . . . 1 . . . . . . . . . . . . . . . . 1 . 16 Brawler 4 | . . . . . . . . . . . . . . . . . . . . . . . . . . . . . . . . 4 Duelist 9 | . . . 1 1 . . . . . . . . . . . . . . . . . . . . . . . . . . . 7 Protector 1 | . . . . . . . . . . . . . . . . . . . . . . . . . . . . . . . . 1 Researcher 7 | . . . . . . . . . . . . . . . . . . . . . . . . . . . . . 2 . . 5 Sentry 29 | . . . 7 3 4 . 1 . . 1 . . . . . . . . . . 3 . . . . . . . . 1 . 9 Hunter 9 | . . . . . . . . . . . . . . . . . . . . . . . . . . . . . . . . 9 Programmer 41 | . . . . . . . 4 . 1 . . . . 2 . 2 . . . . 2 . 2 . 1 . . . . . . 27 Q-Series 1 | . . . . . . . . . . . . . . . . . . . . . . . . . . . . . . . . 1 Behemoth 1 | . . . . . . . . . . 1 . . . . . . . . . . . . . . . . . . . . . . Decapitator 2 | . . . . . . . . . . . . . . . . . . . . . . . . . . . . . . . . 2 Immortal 2 | . . . . . . . . . . . . . . . . . . . . . . . . . . . . . . . . 2 Striker 2 | . . . . . . . . . . . . . . . . . . . . . . . . . . . . . . . . 2 Executioner 7 | . . . . . . . . . . . . . . . . . . . . . . . . . . . . . . . . 7 Alpha 7 2 | . . . . . . . . . . . . . . . . . . . . . . . . . . . . . . . . 2 V-Series 3 | . . . . . . . . . . . . . . . . . . . . . . . . . . . . . . . . 3 Mutant 1 | . . . . . . . . . . . . . . . . . . 1 . . . . . . . . . . . . . . Best Kill Streak 15 | . 3 3 5 4 2 . 5 . 2 2 . 1 1 2 . 3 1 1 . . 3 . 2 . 1 . . 1 2 8 1 15 Combat Bots Only 13 | . 3 3 3 3 2 . 5 . 1 1 . . 1 2 . 2 1 1 . . 1 . 2 . 1 . . . 1 1 . 13 Max Kills in Single Turn 4 | . 1 2 2 2 1 . 2 . 1 1 . 1 1 1 . 1 1 1 . . 1 . 1 . 1 . . 1 1 1 1 4 Gunslinging 1 | . . . . 1 . . . . . . . . . . . . . . . . . . . . . . . . . . . . Exploded 3 | . 1 2 2 1 . . 2 . . . . . . . . . . 1 . . . . . . . . . . . . . 3 Melee 2 | . . . . . . . 1 . 1 1 . . 1 1 . 1 1 1 . . 1 . 1 . 1 . . . 1 1 . 2 Uniques/NPCs Destroyed . | . . . . . . . . . . . . . . . . . . . . . . . . . . . . . . . . . Combat | -11 -10 -10 -9 -9 -9 -9 -6 -6 -6 -6 -6 -6 -6 -5 -5 -5 -5 -5 -5 -4 -4 -4 -4 -4 -4 -4 -3 -3 -3 -2 -2 -2 -------- Run | Yrd Mat Min Mat Sto Rec Scr Fac Was Fac Ext Cet Arc Hub Fac Was Fac Upp Upp War Pro Fac Was Fac Upp Upp Zhi Pro Res Tes Res Qua Frg Hostile Shots Fired 1394 | . 107 20 118 44 24 . 73 . 18 40 2 . 1 35 . 18 . . 2 6 67 . 8 . 6 . . 2 1 28 2 772 Missed 541 | . 18 4 26 18 6 . 40 . 8 23 2 . . 13 . 8 . . 1 5 36 . 4 . 3 . . 2 . 13 1 310 Deflected 15 | . . . . . . . . . . . . . . . . . . . . . . . . . . . . . . . . 15 Hits 853 | . 89 16 92 26 18 . 33 . 10 17 . . 1 22 . 10 . . 1 1 31 . 4 . 3 . . . 1 15 1 462 Melee 28 | . . . 3 . . . . . . . . . . . . . . . . . . . . . . . . . . . . 25 Projectile 825 | . 89 16 89 26 18 . 33 . 10 17 . . 1 22 . 10 . . 1 1 31 . 4 . 3 . . . 1 15 1 437 AOE 26 | . . . . . . . . . . . . . . . . . . . . . 3 . . . . . . . . . . 23 Critical Strikes 69 | . 2 1 8 2 1 . 3 . . . 1 . . 3 . . . . 1 . 3 . . . . . . . . 2 1 41 Actively Blocked 18 | . . . . . . . . . . . . . . . . . . . . . . . . . . . . . . . . 18 Part Disruptions 1 | . . . . . . . . . . . . . . . . . . . . . . . . . . . . . . . . 1 Damage Taken 17953 | . 1015 226 1175 354 266 . 475 . 188 221 59 . 15 767 . 220 . 39 23 19 1019 . 79 . 64 . . . 27 348 27 11327 Core 2421 | . 158 58 188 80 . . 140 . 43 14 30 . 15 75 . 21 . . . . 252 . . . 19 . . . . 108 . 1220 Absorbed by Shields 336 | . . . . . . . . . . 53 . . . . . . . . . . . . . . . . . . . . . 283 Redirected to Shielding 39 | . . . . . . . . . . . . . . . . . . . . . 19 . . . . . . . . . . 20 Ignored by Resistances 1208 | . . . . . . . . . . . . . . . . . . . . . . . . . . . . . . . . 1208 Regen/Repaired (Parts) 7061 | . 134 . . . . . 57 . 117 . . . . 516 . 517 . . . . 225 . 9 . . . . 167 . . 115 5204 Core Remaining (%) 69 | 100 . 13 . . . 33 . . . . . . 71 . . . . . . 90 . . . . . . 76 . 100 . . . Volleys Fired 451 | . 77 15 106 47 17 . 13 . 7 6 17 . 5 5 . 3 . 1 1 . 22 . 14 1 . . . 9 14 5 7 59 Largest 2 | . 2 2 2 2 2 . 1 . 1 1 1 . 1 1 . 1 . 1 1 . 1 . 1 1 . . . 1 1 1 1 1 Hottest 120 | . 90 90 90 46 46 . 80 . 65 48 48 . 65 65 . 120 . 30 100 . 120 . 120 120 . . . 120 120 120 120 120 Shots Fired 704 | . 153 26 209 92 35 . 13 . 7 6 17 . 5 5 . 3 . 1 1 . 22 . 14 1 . . . 9 14 5 7 59 Gun 523 | . 153 24 205 90 35 . 4 . . . . . . . . . . . . . . . . . . . . . . . . 12 Cannon 133 | . . . . . . . 2 . 7 6 17 . 5 5 . 3 . . 1 . 22 . 14 1 . . . 9 14 5 7 15 Launcher 48 | . . 2 4 2 . . 7 . . . . . . . . . . 1 . . . . . . . . . . . . . 32 Special . | . . . . . . . . . . . . . . . . . . . . . . . . . . . . . . . . . Kinetic 375 | . 52 . 163 90 35 . . . . 6 17 . . . . . . . . . . . . . . . . . . . . 12 Thermal 264 | . 85 24 42 . . . 6 . 7 . . . 5 5 . 3 . . . . 22 . 14 1 . . . 9 14 5 7 15 Explosive 48 | . . 2 4 2 . . 7 . . . . . . . . . . 1 . . . . . . . . . . . . . 32 Electromagnetic 16 | . 16 . . . . . . . . . . . . . . . . . . . . . . . . . . . . . . . Entropic 1 | . . . . . . . . . . . . . . . . . . . 1 . . . . . . . . . . . . . Robot Hit Streak 16 | . 10 6 16 13 16 . 15 . . 16 2 . . . . . . . . . . . . . . . . . . . . 16 Robot Miss Streak 7 | . 5 2 5 4 5 . . . . 2 7 . . . . . . . . . . . . . . . . . . . . 1 Penetration Max . | . . . . . . . . . . . . . . . . . . . . . . . . . . . . . . . . . Secondary Targets 6 | . 2 . 2 2 . . . . . . . . . . . . . . . . . . . . . . . . . . . . Max Gunslinging Chain 1 | . 1 . 1 1 . . . . . . . . . . . . . . . . . . . . . . . . . . . . Shots Hit Robots 981 | . 88 17 144 62 29 . 40 . 15 16 7 4 5 20 . 19 2 4 . . 46 . 16 . 2 9 . 7 12 35 6 376 Core Hits 521 | . 34 8 56 25 9 . 26 . 6 9 3 2 3 10 . 13 1 7 . . 15 . 9 . 1 4 . 4 5 12 1 258 Critical Kills 1 | . . . 1 . . . . . . . . . . . . . . . . . . . . . . . . . . . . . Critical Parts Destroyed 6 | . . . 3 1 . . . . . . 2 . . . . . . . . . . . . . . . . . . . . . Critical Strikes 77 | . 2 . 7 1 . . 3 . 2 1 5 . . 1 . 2 1 . . . 7 . . . . . . . . 2 . 43 Burn 6 | . 2 . 3 . . . 1 . . . . . . . . . . . . . . . . . . . . . . . . . Destroy 10 | . . . 4 1 . . . . . . 5 . . . . . . . . . . . . . . . . . . . . . Sever 46 | . . . . . . . . . . . . . . . . . . . . . 1 . . . . . . . . 2 . 43 Impale 15 | . . . . . . . 2 . 2 1 . . . 1 . 2 1 . . . 6 . . . . . . . . . . . Melee Attacks 1514 | . . . . 5 . . 82 . 57 20 . 4 28 100 . 106 10 8 . . 144 . 126 5 6 9 . 48 46 114 55 541 Impact 7 | . . . . 5 . . 2 . . . . . . . . . . . . . . . . . . . . . . . . . Slashing 1015 | . . . . . . . 27 . . . . . . . . . . . . . 46 . 118 5 6 9 . 48 46 114 55 541 Piercing 492 | . . . . . . . 53 . 57 20 . 4 28 100 . 106 10 8 . . 98 . 8 . . . . . . . . . Sneak Attacks 95 | . . . . 1 . . 6 . 7 3 . 4 1 7 . 5 2 4 . . 11 . 5 . . . . 5 6 7 1 20 Combat Hostiles 13 | . . . . . . . 2 . 1 . . . . . . . 1 2 . . 4 . . . . . . . . . . 3 Follow-up Attacks 216 | . . . . . . . 1 . . 2 . . 1 1 . 3 . 1 . . 7 . 2 . 1 2 . . 6 16 2 171 Martial Strikes 76 | . . . . . . . . . . . . . . . . . . . . . . . . . . . . . . . . 76 Damage Inflicted 57545 | . 1248 360 2527 1185 504 . 2201 . 1137 813 188 272 319 1339 . 1294 194 665 . . 2634 . 1422 . 122 1030 . 853 1352 2519 546 32821 Guns 5123 | . 1132 196 2135 929 461 . 86 . . . . . . . . . . . . . . . . . . . . . . . . 184 Cannons 1347 | . . . . . . . . . . 92 188 . . . . . . . . . . . . . . . . . . . . 1067 Explosions 9870 | . 99 152 349 179 . . 542 . . . . . . . . . . 244 . . . . . . . . . . . . . 8305 Melee 41059 | . . . . 46 . . 1573 . 1137 721 . 272 319 1339 . 1294 194 421 . . 2634 . 1422 . 122 1030 . 853 1352 2519 546 23265 Ramming 146 | . 17 12 43 31 43 . . . . . . . . . . . . . . . . . . . . . . . . . . . Kinetic 3970 | . 374 . 1742 929 461 . . . . 92 188 . . . . . . . . . . . . . . . . . . . . 184 Thermal 3761 | . 751 196 393 . . . 86 . . . . . . . . . . . . . . . . . . . . . . . . 2335 Explosive 8503 | . . 152 349 179 . . 542 . . . . . . . . . . 244 . . . . . . . . . . . . . 7037 Electromagnetic 106 | . 106 . . . . . . . . . . . . . . . . . . . . . . . . . . . . . . . Impact 46 | . . . . 46 . . . . . . . . . . . . . . . . . . . . . . . . . . . . Slashing 32496 | . . . . . . . 730 . . . . . . . . . . . . . 657 . 1422 . 122 1030 . 853 1352 2519 546 23265 Piercing 8517 | . . . . . . . 843 . 1137 721 . 272 319 1339 . 1294 194 421 . . 1977 . . . . . . . . . . . Highest Corruption 24 | . 4 4 2 2 2 . 2 2 6 7 7 7 . 3 3 4 1 . . . 3 8 8 . . . . 5 . . . 24 Average Corruption 5 | . 3 4 2 2 2 . 1 2 3 6 7 4 . 2 3 3 1 . . . 2 8 5 . . . . 1 . . . 13 Corruption Purged 29 | . . . . . . . 2 . . . . 7 . . . 3 1 . . . 3 . 8 . . . . 5 . . . . Corruption Blocked . | . . . . . . . . . . . . . . . . . . . . . . . . . . . . . . . . . Effects 432 | . 37 18 11 19 20 . 6 2 27 27 10 4 . 18 . 47 . . . . 4 1 6 . . . . 1 . . . 174 Message Errors 102 | . 9 4 3 2 1 . 1 . 6 6 4 2 . 3 . 10 . . . . 2 1 2 . . . . 1 . . . 45 Matter Fused 120 | . 9 6 1 10 6 . 1 1 9 7 5 1 . 7 . 14 . . . . 1 . 1 . . . . . . . . 41 Heat Flow Errors 47 | . 3 . 2 2 2 . 2 . 2 4 . . . 2 . 6 . . . . . . . . . . . . . . . 22 Energy Discharges 50 | . 3 5 3 1 4 . 1 . 3 1 . . . 2 . 5 . . . . 1 . 2 . . . . . . . . 19 Parts Rejected 4 | . 1 . . . . . . . . . . . . . . 1 . . . . . . . . . . . . . . . 2 Parts Fused 6 | . . 1 . . 2 . . 1 . . . . . . . . . . . . . . . . . . . . . . . 2 Data Loss (minor) 55 | . 4 1 1 2 4 . . . 4 7 1 1 . 3 . 9 . . . . . . 1 . . . . . . . . 17 Data Loss (major) 19 | . 3 1 . 1 . . 1 . 2 2 . . . 1 . 1 . . . . . . . . . . . . . . . 7 Misfires 6 | . 3 . 1 . 1 . . . . . . . . . . . . . . . . . . . . . . . . . . 1 Alerts 8 | . 1 . . 1 . . . . 1 . . . . . . 1 . . . . . . . . . . . . . . . 4 Misdirections 13 | . . . . . . . . . . . . . . . . . . . . . . . . . . . . . . . . 13 Weapon Failures 2 | . 1 . . . . . . . . . . . . . . . . . . . . . . . . . . . . . . 1 Overload Shots . | . . . . . . . . . . . . . . . . . . . . . . . . . . . . . . . . . Overflow Damage 5656 | . . . 20 . . . 364 . 381 110 . . 27 293 . 139 200 11 . . 290 . 312 . 2 63 . 255 462 543 211 1973 Projectiles 109 | . . . . . . . . . . . . . . . . . . . . . . . . . . . . . . . . 109 Explosions 288 | . . . 20 . . . 6 . . . . . . . . . . 11 . . . . . . . . . . . . . 251 Melee 5259 | . . . . . . . 358 . 381 110 . . 27 293 . 139 200 . . . 290 . 312 . 2 63 . 255 462 543 211 1613 Knockbacks 6 | . 1 . 1 1 1 . . . . 1 1 . . . . . . . . . . . . . . . . . . . . . Impact 4 | . 1 . 1 1 1 . . . . . . . . . . . . . . . . . . . . . . . . . . . Kinetic 2 | . . . . . . . . . . 1 1 . . . . . . . . . . . . . . . . . . . . . Secondary . | . . . . . . . . . . . . . . . . . . . . . . . . . . . . . . . . . Self-Inflicted Damage 80 | . . . . . . . 11 . . . . . . . . . . . . . . . . . . . . . . . . 69 Shots 3 | . . . . . . . 1 . . . . . . . . . . . . . . . . . . . . . . . . 2 Rammed 16 | . 1 4 7 3 1 . . . . . . . . . . . . . . . . . . . . . . . . . . . Targets Rammed 21 | . 3 4 7 4 3 . . . . . . . . . . . . . . . . . . . . . . . . . . . Kicked 2 | . 2 . . . . . . . . . . . . . . . . . . . . . . . . . . . . . . . Crushed 3 | . . . . 1 2 . . . . . . . . . . . . . . . . . . . . . . . . . . . Highest Temperature 866 | . 352 320 191 200 231 . 222 1 284 219 . . 12 249 . 251 . . 144 48 340 74 224 232 205 58 . 60 150 279 244 866 Average Temperature 62 | . 83 154 70 50 70 . 64 1 103 113 . . 5 50 . 67 . . 53 26 42 26 45 78 83 29 . 23 51 76 73 150 Received Heat Transfer 3421 | . 513 144 531 198 81 . 33 . 18 56 . . . 30 . 18 . 18 . . 162 . . . . . . . . 18 . 1601 Effects 10 | . 1 2 . . . . . . . . . . . . . . . . . . . . . . . . . . . . . 7 Shutdowns 2 | . 1 . . . . . . . . . . . . . . . . . . . . . . . . . . . . . . 1 Energy Bleed 1 | . . . . . . . . . . . . . . . . . . . . . . . . . . . . . . . . 1 Interference 2 | . . 2 . . . . . . . . . . . . . . . . . . . . . . . . . . . . . . Matter Decay 1 | . . . . . . . . . . . . . . . . . . . . . . . . . . . . . . . . 1 Short Circuit 3 | . . . . . . . . . . . . . . . . . . . . . . . . . . . . . . . . 3 Damage (major) 1 | . . . . . . . . . . . . . . . . . . . . . . . . . . . . . . . . 1 Siege Activations . | . . . . . . . . . . . . . . . . . . . . . . . . . . . . . . . . . Martial Activations . | . . . . . . . . . . . . . . . . . . . . . . . . . . . . . . . . . Shielding Activations . | . . . . . . . . . . . . . . . . . . . . . . . . . . . . . . . . . Robots Disrupted . | . . . . . . . . . . . . . . . . . . . . . . . . . . . . . . . . . Combat Hostiles . | . . . . . . . . . . . . . . . . . . . . . . . . . . . . . . . . . Robots Corrupted . | . . . . . . . . . . . . . . . . . . . . . . . . . . . . . . . . . Combat Hostiles . | . . . . . . . . . . . . . . . . . . . . . . . . . . . . . . . . . Parts Fried 1 | . 1 . . . . . . . . . . . . . . . . . . . . . . . . . . . . . . . Impact Corruptions . | . . . . . . . . . . . . . . . . . . . . . . . . . . . . . . . . . Robots Melted . | . . . . . . . . . . . . . . . . . . . . . . . . . . . . . . . . . Combat Hostiles . | . . . . . . . . . . . . . . . . . . . . . . . . . . . . . . . . . Parts Melted 9 | . 4 . 3 . . . 1 . . . . . . . . . . . . . . . . . . . . . . . . 1 Heat Transferred 5440 | . 2066 533 1261 . . . 300 . . . . . . . . . . . . . . . . . . . . . . . . 1280 Parts Sabotaged 3 | . . . . . . . . . . . . . . . . . . . . . . . . . . . . . . . . 3 Parts Stolen . | . . . . . . . . . . . . . . . . . . . . . . . . . . . . . . . . . Parts Stripped . | . . . . . . . . . . . . . . . . . . . . . . . . . . . . . . . . . Power Chain Reactions 1 | . 1 . . . . . . . . . . . . . . . . . . . . . . . . . . . . . . . Alert | -11 -10 -10 -9 -9 -9 -9 -6 -6 -6 -6 -6 -6 -6 -5 -5 -5 -5 -5 -5 -4 -4 -4 -4 -4 -4 -4 -3 -3 -3 -2 -2 -2 ------- Run | Yrd Mat Min Mat Sto Rec Scr Fac Was Fac Ext Cet Arc Hub Fac Was Fac Upp Upp War Pro Fac Was Fac Upp Upp Zhi Pro Res Tes Res Qua Frg Maximum Alert Level 5 | . . . . . . . 1 . . 1 . . 2 1 . . . . . . . . . . . . . . . . . 5 Low Security (%) 85 | . 100 100 100 100 100 . 93 100 100 87 100 100 21 92 100 100 . . . . 100 100 100 . . . . 100 100 100 100 20 Level 1 3 | . . . . . . . 6 . . 12 . . 21 7 . . . . . . . . . . . . . . . . . 11 Level 2 2 | . . . . . . . . . . . . . 56 . . . . . . . . . . . . . . . . . . 12 Level 3 2 | . . . . . . . . . . . . . . . . . . . . . . . . . . . . . . . . 15 Level 4 1 | . . . . . . . . . . . . . . . . . . . . . . . . . . . . . . . . 12 Level 5 4 | . . . . . . . . . . . . . . . . . . . . . . . . . . . . . . . . 27 High Security . | . . . . . . . . . . . . . . . . . . . . . . . . . . . . . . . . . Max Security . | . . . . . . . . . . . . . . . . . . . . . . . . . . . . . . . . . Peak Influence 3798 | . 68 94 189 179 56 . 320 108 45 267 180 145 565 272 5 145 . . . . 172 13 74 . . . . 83 92 137 103 3798 Initial 272 | . . . . . 28 . . 108 40 20 132 29 25 272 5 . . . . . 21 13 . . . . . . 9 31 73 8 Average 195 | . 17 10 54 92 10 . 52 84 7 68 126 84 368 73 3 21 . . . . 37 7 16 . . . . 18 26 51 29 1035 Influence Increases 14370 | . 406 174 724 676 249 . 787 . 262 556 132 196 1166 436 . 682 10 147 374 45 592 . 437 . 60 15 . 264 504 412 315 4749 Destroy 0b10 Robot/C 5660 | . 260 80 400 320 80 . 240 . 20 300 80 80 340 40 . 40 . 100 160 . 100 . 40 . 20 . . . 200 40 . 2720 Destroy 0b10 Robot/NC 795 | . 30 . 60 60 15 . 45 . 45 15 5 10 45 40 . 55 10 10 5 . 50 . 50 . . 15 . 30 25 75 20 80 Destroy Leader 1144 | . 58 10 138 126 . . 76 . 18 44 . . 66 20 . 22 . 10 . . 52 . 22 . 10 . . 2 50 22 6 392 Allied During Kill 1186 | . . . . 76 . . . . . 97 23 90 422 . . . . 27 89 . 1 . . . . . . . 33 . . 328 Trap Triggered on 0b10 90 | . . . . . . . 30 . . . . . . . . 20 . . . . . . . . . . . . 20 20 . . Successful Hack 923 | . 22 . 40 33 33 . 94 . 11 31 4 . 18 86 . 97 . . . . 101 . 28 . . . . 78 65 48 79 55 Select Force Hacks 360 | . 30 . 60 . 120 . . . . . . . 150 . . . . . . . . . . . . . . . . . . . Disable Machine 900 | . . 15 . 45 . . 105 . 15 30 . 15 45 15 . . . . . . . . . . . . . . 60 . 90 465 Destroy Structure 1452 | . 6 9 26 16 1 . 92 . 33 9 20 1 50 130 . 118 . . . . 168 . 162 . . . . 64 36 117 75 319 Partial Spotted 795 | . . . . . . . 75 . 60 15 . . 30 45 . 90 . . . . 120 . 45 . . . . 30 15 75 45 150 Lose Combat Pursuer 1065 | . . 60 . . . . 30 . 60 15 . . . 60 . 240 . . 120 45 . . 90 . 30 . . 60 . 15 . 240 Influence Decreases 10572 | . 406 174 722 603 324 . 476 253 278 360 296 195 684 976 17 606 86 60 317 154 589 38 363 74 50 25 . 248 464 337 431 966 Entered New Map 1225 | . . . . 2 47 . . 203 18 22 106 45 50 285 12 . 29 . 87 144 14 25 . 29 . 10 . . 7 25 58 7 Time Decay 7040 | . 366 174 525 360 277 . 446 30 250 232 130 110 254 548 5 400 57 60 150 10 425 10 363 45 50 15 . 189 276 312 342 629 Lost Part 355 | . 40 . 10 . . . 20 . 10 10 . . . 50 . 10 . . . . 15 . . . . . . . . . . 190 Lost Ally 824 | . . . . 241 . . 10 20 . 54 60 40 80 30 . 16 . . 80 . 20 3 . . . . . 10 20 . . 140 Purge Threat 1128 | . . . 187 . . . . . . 42 . . 300 63 . 180 . . . . 115 . . . . . . 49 161 . 31 . Squads Dispatched 164 | . 3 1 3 4 . . 17 . 14 2 . . 13 14 . 16 . . . . 11 . 12 . . . . 9 14 5 3 23 Investigation 76 | . 1 1 2 1 . . 8 . 9 2 . . 5 8 . 11 . . . . 5 . 10 . . . . 5 2 2 . 4 Extermination 45 | . . . . . . . 6 . 4 . . . 1 4 . 4 . . . . 4 . 2 . . . . 3 3 3 3 8 Reinforcement 27 | . 2 . 1 1 . . 2 . 1 . . . 4 2 . 1 . . . . 2 . . . . . . 1 5 . . 5 Assault 9 | . . . . 2 . . . . . . . . . . . . . . . . . . . . . . . . 1 . . 6 Garrison 7 | . . . . . . . 1 . . . . . 3 . . . . . . . . . . . . . . . 3 . . . Intercept . | . . . . . . . . . . . . . . . . . . . . . . . . . . . . . . . . . Searches Triggered . | . . . . . . . . . . . . . . . . . . . . . . . . . . . . . . . . . Construction Impeded . | . . . . . . . . . . . . . . . . . . . . . . . . . . . . . . . . . Haulers Reinforced . | . . . . . . . . . . . . . . . . . . . . . . . . . . . . . . . . . Active Scanning Responses . | . . . . . . . . . . . . . . . . . . . . . . . . . . . . . . . . . Cargo Convoy Interrupts 1 | . . . . . . . 1 . . . . . . . . . . . . . . . . . . . . . . . . . Stealth | -11 -10 -10 -9 -9 -9 -9 -6 -6 -6 -6 -6 -6 -6 -5 -5 -5 -5 -5 -5 -4 -4 -4 -4 -4 -4 -4 -3 -3 -3 -2 -2 -2 --------- Run | Yrd Mat Min Mat Sto Rec Scr Fac Was Fac Ext Cet Arc Hub Fac Was Fac Upp Upp War Pro Fac Was Fac Upp Upp Zhi Pro Res Tes Res Qua Frg Distress Signals 45 | . 2 . 2 4 . . 6 . 1 1 1 . 2 3 . 1 . . 2 . 4 . 4 . . . . 1 7 . . 4 Communications Jammed 39 | . . . . . . . . . . . . . . . . . . . . . 8 . . . . . . . 22 1 . 8 Distress Signals 17 | . . . . . . . . . . . . . . . . . . . . . 8 . . . . . . . 1 . . 8 Times Spotted 602 | . 30 9 39 21 4 . 38 5 14 18 5 1 21 34 6 35 . 4 10 3 35 5 17 . 5 . . 4 14 21 4 200 Peak Tracking Total 20 | . 4 3 4 5 2 . 4 5 8 3 5 1 5 5 6 6 . 4 11 3 8 5 4 . 3 . . 3 4 5 1 20 Tactical Retreats 87 | . . 4 . . . . 5 1 3 4 . . 5 13 . 10 . . 3 1 9 1 5 . 1 . . 2 3 4 . 13 Traps | -11 -10 -10 -9 -9 -9 -9 -6 -6 -6 -6 -6 -6 -6 -5 -5 -5 -5 -5 -5 -4 -4 -4 -4 -4 -4 -4 -3 -3 -3 -2 -2 -2 ------- Run | Yrd Mat Min Mat Sto Rec Scr Fac Was Fac Ext Cet Arc Hub Fac Was Fac Upp Upp War Pro Fac Was Fac Upp Upp Zhi Pro Res Tes Res Qua Frg Traps Triggered 36 | . 4 . 1 . . . 2 . 4 2 . . . 7 . 2 . . . . 1 . 3 . . . . 1 . . . 9 Indirectly . | . . . . . . . . . . . . . . . . . . . . . . . . . . . . . . . . . Trap Hack Attempts 11 | . . . . . . . 11 . . . . . . . . . . . . . . . . . . . . . . . . . Triggered 1 | . . . . . . . 1 . . . . . . . . . . . . . . . . . . . . . . . . . Disarmed 67 | . . . . . . . . . . . . . 3 . . 23 . . . . 6 . 25 . . . . . 10 . . . Reprogrammed 27 | . . . . . . . 4 . . . . . . . . 5 . . . . . . . . . . . . 6 8 4 . Reused 9 | . . . . . . . 3 . . . . . . . . 2 . . . . . . . . . . . . 2 2 . . Traps Extracted 4 | . . . . . . . 4 . . . . . . . . . . . . . . . . . . . . . . . . . Installed 4 | . . . . . . . 4 . . . . . . . . . . . . . . . . . . . . . . . . . Triggered 9 | . . . . . . . 3 . . . . . . . . 2 . . . . . . . . . . . . 2 2 . . Most Traps Carried 4 | . . . . . . 1 4 1 1 1 . . . . . . . . . . . . . . . . . . . . . . Machines | -11 -10 -10 -9 -9 -9 -9 -6 -6 -6 -6 -6 -6 -6 -5 -5 -5 -5 -5 -5 -4 -4 -4 -4 -4 -4 -4 -3 -3 -3 -2 -2 -2 ---------- Run | Yrd Mat Min Mat Sto Rec Scr Fac Was Fac Ext Cet Arc Hub Fac Was Fac Upp Upp War Pro Fac Was Fac Upp Upp Zhi Pro Res Tes Res Qua Frg Machines Disabled 63 | . 1 1 . 3 . . 7 . 1 2 . 1 3 1 . . . . 1 . . . . . . . . . 4 . 6 32 Max in Single Turn 4 | . 1 1 . 1 . . 4 . 1 . . . 1 1 . . . . 1 . . . . . . . . . 1 . 1 4 Garrison Access 18 | . . . . . . . 2 . . . . . 1 2 . 4 . . . . 3 . 1 . . . . 2 1 . 1 1 Network Hub 3 | . . . . . . . . . . . . . 3 . . . . . . . . . . . . . . . . . . . Machines Repaired . | . . . . . . . . . . . . . . . . . . . . . . . . . . . . . . . . . Machines Dismantled . | . . . . . . . . . . . . . . . . . . . . . . . . . . . . . . . . . Machines Sabotaged 3 | . . . . . . . . . . . . . 3 . . . . . . . . . . . . . . . . . . . Overloaded Fab Kills . | . . . . . . . . . . . . . . . . . . . . . . . . . . . . . . . . . Hacking | -11 -10 -10 -9 -9 -9 -9 -6 -6 -6 -6 -6 -6 -6 -5 -5 -5 -5 -5 -5 -4 -4 -4 -4 -4 -4 -4 -3 -3 -3 -2 -2 -2 --------- Run | Yrd Mat Min Mat Sto Rec Scr Fac Was Fac Ext Cet Arc Hub Fac Was Fac Upp Upp War Pro Fac Was Fac Upp Upp Zhi Pro Res Tes Res Qua Frg Machines Accessed 278 | . 8 1 9 11 10 2 25 . 16 13 2 . 7 19 . 36 3 . 3 . 27 . 22 1 . 4 . 15 13 10 13 8 Terminals 151 | . 6 . 7 10 6 . 11 . 9 12 2 . 6 7 . 15 . . . . 16 . 9 . . . . 7 9 7 8 4 Fabricators 30 | . . . . . . . 4 . 3 . . . . 2 . 6 . . . . 4 . 5 . . . . 2 2 2 . . Repair Stations 16 | . 1 . . . . . 3 . 1 . . . . 2 . 4 . . . . 1 . 2 . . . . 1 . . 1 . Recycling Units 39 | . 1 . 2 . 4 . 3 . 3 1 . . . 6 . 6 . . . . 2 . 5 . . . . 2 . 1 . 3 Scanalyzers 9 | . . . . . . . 2 . . . . . . . . 1 . . . . 1 . . . . . . 1 1 . 3 . Garrison Access 19 | . . . . 1 . . 2 . . . . . 1 2 . 4 . . . . 3 . 1 . . . . 2 1 . 1 1 Total Hacks 1010 | . 25 1 29 29 21 2 68 . 49 21 4 . 21 78 . 159 8 . 9 . 120 . 88 1 . 17 . 58 58 57 62 25 Successful 754 | . 13 1 13 11 13 2 42 . 37 16 3 . 20 60 . 137 8 . 9 . 96 . 76 1 . 17 . 41 46 27 49 16 Failed 254 | . 12 . 16 18 7 . 26 . 12 5 1 . 1 18 . 22 . . . . 24 . 12 . . . . 17 12 30 12 9 Catastrophic 38 | . 1 . 3 2 1 . 2 . 1 1 . . . 7 . 1 . . . . 3 . . . . . . 7 1 4 3 1 Database Lockouts 2 | . . . . . 1 . . . . . . . . . . . . . . . . . . . . . . . . . 1 . Manual 521 | . 15 . 24 10 19 . 34 . 25 11 1 . 14 40 . 66 . . . . 78 . 41 . . . . 30 36 29 29 19 Terminals 653 | . 18 . 27 27 17 . 31 . 29 20 4 . 20 46 . 90 . . . . 87 . 52 . . . . 31 47 46 43 18 Fabricators 130 | . . . . . . . 17 . 14 . . . . 7 . 26 . . . . 13 . 21 . . . . 14 8 10 . . Repair Stations 64 | . 6 . . . . . 7 . 2 . . . . 11 . 18 . . . . 6 . 3 . . . . 2 . . 9 . Recycling Units 62 | . 1 . 2 . 4 . 4 . 4 1 . . . 10 . 12 . . . . 4 . 11 . . . . 3 . 1 . 5 Scanalyzers 35 | . . . . . . . 6 . . . . . . . . 9 . . . . 6 . . . . . . 6 2 . 6 . Garrison Access 28 | . . . . 2 . . 3 . . . . . 1 4 . 4 . . . . 4 . 1 . . . . 2 1 . 4 2 Terminal Hacks 383 | . 2 1 6 10 3 2 8 . 16 15 3 . 12 23 . 61 8 . 9 . 50 . 36 1 . 17 . 15 32 20 24 9 Record 22 | . . . . . . 1 . . . . 2 . . . . . 6 . . . 1 . . . . 5 . . . 5 2 . Part Schematic 20 | . . . . . . . . . . 1 . . . 1 . 2 . . . . 6 . . . . 4 . 4 1 1 . . Robot Analysis 15 | . . . 2 . . . . . . . . . . . . 3 . . . . . . 1 . . 4 . . . . . 5 Prototype ID Bank 25 | . . . . 1 2 . . . . 1 . . . . . 4 . . 7 . . . . . . 4 . . . . 6 . Open Door 23 | . . 1 . 5 . . . . 1 8 1 . . . . . 2 . 2 . . . . 1 . . . . 1 1 . . Level Access Points 6 | . . . . . . . . . . . . . 1 1 . 1 . . . . 1 . 1 . . . . . 1 . . . Branch Access Points 8 | . . . . . . . 1 . 1 . . . . 1 . 1 . . . . 1 . 1 . . . . 1 . 1 . . Emergency Access Points 12 | . . . . . . . . . . . . . 1 . . 3 . . . . 4 . 1 . . . . . 2 . 1 . Machine Index 10 | . . . . . . . . . 1 . . . 1 1 . 1 . . . . 1 . 1 . . . . 1 1 1 1 . Terminal Index 6 | . 1 . 1 . 1 . 1 . 1 1 . . . . . . . . . . . . . . . . . . . . . . Fabricator Index 1 | . . . . . . . . . . . . . . . . . . . . . . . . . . . . . . 1 . . Scanalyzer Index 1 | . . . . . . . 1 . . . . . . . . . . . . . . . . . . . . . . . . . Alert Level 12 | . . . . . . . . . . . . . 1 2 . 3 . . . . 1 . 2 . . . . . 1 . 2 . Unreport Threat 24 | . . . 2 . . . . . 1 2 . . 2 2 . 3 . . . . 5 . . . . . . 2 3 . 2 . Locate Traps 27 | . . . . . . . 2 . . . . . 1 . . 6 . . . . 5 . 6 . . . . . 5 1 1 . Disarm Traps 16 | . . . . . . . . . . . . . 1 . . 7 . . . . 1 . 5 . . . . . 2 . . . Reprogram Traps 5 | . . . . . . . . . . . . . . . . 1 . . . . . . . . . . . . 1 2 1 . Dispatch Records 8 | . . . . . . . . . . . . . . . . . . . . . 1 . 3 . . . . 1 2 1 . . Maintenance Status 4 | . . . . . . . . . . . . . . 1 . 1 . . . . 1 . 1 . . . . . . . . . Security Status 2 | . . . . . . . . . . . . . . 1 . 1 . . . . . . . . . . . . . . . . Patrol Status 5 | . . . . . . . . . . . . . . 1 . 1 . . . . 1 . 1 . . . . . 1 . . . Transport Status 1 | . . . . . . . . . . . . . . . . . . . . . 1 . . . . . . . . . . . Extermination Status 1 | . . . . . . . . . . . . . . . . . . . . . . . . . . . . . . 1 . . Recall Investigation 27 | . . . . . . . . . 5 1 . . . 3 . 5 . . . . 4 . 4 . . . . 3 . . . 2 Recall Extermination 24 | . . . . . . . 1 . 1 . . . . 3 . 5 . . . . 3 . 2 . . . . 2 2 3 2 . Recall Reinforcements 6 | . . . . . . . . . 1 . . . 2 . . 1 . . . . 1 . . . . . . . 1 . . . Recall Assault 1 | . . . . . . . . . . . . . . . . . . . . . . . 1 . . . . . . . . . Hauler Manifests 16 | . . . 1 2 . . 1 . 2 . . . 1 2 . 2 . . . . 1 . 1 . . . . 1 1 . 1 . Registered Components 8 | . 1 . . 1 . . . . 1 1 . . . 1 . 1 . . . . . . . . . . . . . 1 1 . Registered Prototypes 10 | . . . . . . . 1 . 1 . . . . 2 . 1 . . . . 1 . 1 . . . . . 1 1 1 . Zone Layout 33 | . . . . 1 . . . . . . . . 1 1 . 8 . . . . 10 . 4 . . . . . 4 . 3 1 Proto ID Catalog 2 | . . . . . . 1 . . . . . . . . . . . . . . . . . . . . . . . . . 1 Protovariant Controls 2 | . . . . . . . . . . . . . . . . . . . . . . . . . . . . . 2 . . . Fabricator Hacks 83 | . . . . . . . 10 . 11 . . . . 4 . 18 . . . . 7 . 13 . . . . 11 5 4 . . Network Status 8 | . . . . . . . 1 . 1 . . . . 1 . 2 . . . . 1 . 1 . . . . 1 . . . . Load Schematic 47 | . . . . . . . 6 . 6 . . . . 2 . 10 . . . . 4 . 8 . . . . 6 3 2 . . Build 28 | . . . . . . . 3 . 4 . . . . 1 . 6 . . . . 2 . 4 . . . . 4 2 2 . . Repair Station Hacks 55 | . 3 . . . . . 3 . 2 . . . . 10 . 18 . . . . 6 . 3 . . . . 2 . . 8 . Scan Component 29 | . 2 . . . . . 2 . 1 . . . . 5 . 9 . . . . 3 . 2 . . . . 1 . . 4 . Repair 26 | . 1 . . . . . 1 . 1 . . . . 5 . 9 . . . . 3 . 1 . . . . 1 . . 4 . Recycling Unit Hacks 22 | . . . . . . . . . 1 . . . . 5 . 6 . . . . 2 . 5 . . . . 2 . 1 . . Retrieve Components 22 | . . . . . . . . . 1 . . . . 5 . 6 . . . . 2 . 5 . . . . 2 . 1 . . Scanalyzer 30 | . . . . . . . 5 . . . . . . . . 8 . . . . 6 . . . . . . 4 2 . 5 . Insert Component 18 | . . . . . . . 3 . . . . . . . . 4 . . . . 3 . . . . . . 3 1 . 4 . Analyze 12 | . . . . . . . 2 . . . . . . . . 4 . . . . 3 . . . . . . 1 1 . 1 . Garrison Access Hacks 18 | . . . . . . . 2 . . . . . 1 2 . 4 . . . . 3 . 1 . . . . 2 1 . 1 1 Seal Access 18 | . . . . . . . 2 . . . . . 1 2 . 4 . . . . 3 . 1 . . . . 2 1 . 1 1 Unauthorized Hacks 163 | . 8 . 7 1 10 . 14 . 7 1 . . 7 16 . 22 . . . . 22 . 18 . . . . 5 6 2 11 6 Terminals 82 | . 7 . 5 1 6 . 4 . 2 . . . 7 5 . 8 . . . . 14 . 5 . . . . 1 3 . 11 3 Track 4 | . . . . . . . . . . . . . . . . . . . . . . . . . . . . . . . 3 1 Assimilate 22 | . . . . . . . 3 . . . . . . 2 . 5 . . . . 5 . 1 . . . . 1 2 . 2 1 Botnet 16 | . 1 . . 1 1 . . . 1 . . . 1 2 . 1 . . . . 2 . 1 . . . . . 1 . 3 1 Detonate 1 | . . . . . . . . . . . . . . . . 1 . . . . . . . . . . . . . . . . Operators 5 | . . . . . . . 1 . 1 . . . 1 1 . 1 . . . . . . . . . . . . . . . . Skim 29 | . 6 . 5 . 5 . . . . . . . . . . . . . . . 7 . 3 . . . . . . . 3 . Sabotage 5 | . . . . . . . . . . . . . 5 . . . . . . . . . . . . . . . . . . . Fabricators 41 | . . . . . . . 6 . 2 . . . . 3 . 8 . . . . 6 . 8 . . . . 3 3 2 . . Prioritize 15 | . . . . . . . 3 . . . . . . 1 . 2 . . . . 2 . 3 . . . . 1 1 2 . . Haulers 7 | . . . . . . . . . . . . . . 1 . 2 . . . . 2 . 1 . . . . . 1 . . . Recompile 19 | . . . . . . . 3 . 2 . . . . 1 . 4 . . . . 2 . 4 . . . . 2 1 . . . Repair Stations 2 | . . . . . . . 1 . . . . . . 1 . . . . . . . . . . . . . . . . . . Mechanics 1 | . . . . . . . . . . . . . . 1 . . . . . . . . . . . . . . . . . . Patch 1 | . . . . . . . 1 . . . . . . . . . . . . . . . . . . . . . . . . . Recycling Units 36 | . 1 . 2 . 4 . 3 . 3 1 . . . 5 . 6 . . . . 2 . 5 . . . . 1 . . . 3 Tunnel 7 | . 1 . 2 . 4 . . . . . . . . . . . . . . . . . . . . . . . . . . . Fedlink 27 | . . . . . . . 3 . 3 1 . . . 5 . 6 . . . . 2 . 5 . . . . 1 . . . 1 Scraphulk 2 | . . . . . . . . . . . . . . . . . . . . . . . . . . . . . . . . 2 Scanalyzers . | . . . . . . . . . . . . . . . . . . . . . . . . . . . . . . . . . Garrison Access 2 | . . . . . . . . . . . . . . 2 . . . . . . . . . . . . . . . . . . Broadcast 1 | . . . . . . . . . . . . . . 1 . . . . . . . . . . . . . . . . . . Watchers 1 | . . . . . . . . . . . . . . 1 . . . . . . . . . . . . . . . . . . Data Cores Recovered 8 | . . . . 1 . . . . . . . . 1 . . . . . . . . . . . . . . 2 2 1 1 . Used 4 | . . . . 1 . . . . . . . . . . . . . . . . . . . . . . . 1 . 1 1 . Hacking Detections 154 | . 7 . 8 9 4 . 17 . 11 6 1 . 4 10 . 17 . . . . 13 . 8 . . . . 9 8 8 10 4 Full Trace Events 19 | . . . . 2 . . 1 . 4 1 . . . 2 . 1 . . . . 1 . 1 . . . . 2 1 2 . 1 Feedback Events 4 | . . . . . . . . . . 1 . . . 1 . . . . . . . . . . . . . 1 . . . 1 Corruption 3 | . . . . . . . . . . 1 . . . 1 . . . . . . . . . . . . . 1 . . . . Hackware Fried 1 | . . . . . . . . . . . . . . . . . . . . . . . . . . . . . . . . 1 Feedback Blocked . | . . . . . . . . . . . . . . . . . . . . . . . . . . . . . . . . . Robot Schematics Acquired 4 | . . . . . . . . . . . . . . . . . . . . . . . . . . . . . 4 . . . Robots Built . | . . . . . . . . . . . . . . . . . . . . . . . . . . . . . . . . . Authchips . | . . . . . . . . . . . . . . . . . . . . . . . . . . . . . . . . . Time . | . . . . . . . . . . . . . . . . . . . . . . . . . . . . . . . . . Total Robot Build Rating . | . . . . . . . . . . . . . . . . . . . . . . . . . . . . . . . . . Part Schematics Acquired 46 | . . . . . . . 2 . . 1 . . . 1 . 6 . . . . 9 . . . . 4 . 5 10 1 1 6 Parts Built 30 | . . . . . . . 3 . 4 . . . . 2 . 6 . . . . 2 . 4 . . . . 4 2 3 . . Authchips 20 | . . . . . . . 2 . 3 . . . . . . 5 . . . . 1 . 3 . . . . 4 2 . . . Time 2070 | . . . . . . . 326 . 302 . . . . 58 . 554 . . . . 204 . 272 . . . . 173 111 70 . . Total Part Build Rating 209 | . . . . . . . 21 . 20 . . . . 14 . 36 . . . . 16 . 32 . . . . 33 18 19 . . Parts Repaired 26 | . 1 . . . . . 1 . 1 . . . . 5 . 9 . . . . 3 . 1 . . . . 1 . . 4 . Time 1007 | . 26 . . . . . 25 . 22 . . . . 190 . 312 . . . . 134 . 31 . . . . 54 . . 213 . Parts Recycled . | . . . . . . . . . . . . . . . . . . . . . . . . . . . . . . . . . Recycled Matter . | . . . . . . . . . . . . . . . . . . . . . . . . . . . . . . . . . Retrieved Matter . | . . . . . . . . . . . . . . . . . . . . . . . . . . . . . . . . . Retrieved Components 54 | . . . . . . . . . 3 . . . . 5 . 17 . . . . 5 . 14 . . . . 1 . 9 . . Parts Scanalyzed 13 | . . . . . . . 2 . . . . . . . . 4 . . . . 3 . . . . . . 2 1 . 1 . Part Schematics Acquired 12 | . . . . . . . 2 . . . . . . . . 4 . . . . 3 . . . . . . 1 1 . 1 . Parts Damaged 2 | . . . . . . . 1 . . . . . . . . . . . . . . . . . . . . . . . 1 . Bothacking | -11 -10 -10 -9 -9 -9 -9 -6 -6 -6 -6 -6 -6 -6 -5 -5 -5 -5 -5 -5 -4 -4 -4 -4 -4 -4 -4 -3 -3 -3 -2 -2 -2 ------------ Run | Yrd Mat Min Mat Sto Rec Scr Fac Was Fac Ext Cet Arc Hub Fac Was Fac Upp Upp War Pro Fac Was Fac Upp Upp Zhi Pro Res Tes Res Qua Frg Used RIF Installer . | . . . . . . . . . . . . . . . . . . . . . . . . . . . . . . . . . Robots Hacked . | . . . . . . . . . . . . . . . . . . . . . . . . . . . . . . . . . Non-combat . | . . . . . . . . . . . . . . . . . . . . . . . . . . . . . . . . . Combat . | . . . . . . . . . . . . . . . . . . . . . . . . . . . . . . . . . Robot Hacks Applied . | . . . . . . . . . . . . . . . . . . . . . . . . . . . . . . . . . Relay Couplers Released . | . . . . . . . . . . . . . . . . . . . . . . . . . . . . . . . . . Fabnet Peak Effective % . | . . . . . . . . . . . . . . . . . . . . . . . . . . . . . . . . . Robots Rewired 14 | . . . . . . . . . . 3 . . . 1 . . . 4 5 . . . . . . . . . 1 . . . Allies Hacked . | . . . . . . . . . . . . . . . . . . . . . . . . . . . . . . . . . Hacks Repelled . | . . . . . . . . . . . . . . . . . . . . . . . . . . . . . . . . . Allies | -11 -10 -10 -9 -9 -9 -9 -6 -6 -6 -6 -6 -6 -6 -5 -5 -5 -5 -5 -5 -4 -4 -4 -4 -4 -4 -4 -3 -3 -3 -2 -2 -2 -------- Run | Yrd Mat Min Mat Sto Rec Scr Fac Was Fac Ext Cet Arc Hub Fac Was Fac Upp Upp War Pro Fac Was Fac Upp Upp Zhi Pro Res Tes Res Qua Frg Total Allies 64 | . . . . 12 . . 3 1 . 16 5 . . 3 . 4 . 4 5 . 5 1 1 . . . . 1 1 . . 2 Largest Group 10 | . . . . 10 . . 1 1 . 9 7 7 4 1 . 2 1 5 9 . 3 1 1 . . . . 1 1 . . 2 Highest-Rated Group 634 | . . . . 94 . . 26 31 . 272 634 634 384 29 . 46 24 143 371 . 81 46 45 . . . . 45 114 . . 278 Highest-Rated Ally 159 | . . . . 31 . . 26 31 . 159 159 138 96 29 . 26 24 30 68 . 45 46 45 . . . . 45 114 . . 139 Total Orders 46 | . . . . 7 . 5 . . . . 1 1 . 2 . . 2 . 2 . 5 . 2 . . . . . 2 . . 17 STAY 8 | . . . . . . . . . . . . . . 1 . . 1 . 1 . 3 . 1 . . . . . 1 . . . ROAM 2 | . . . . 1 . . . . . . . . . . . . . . . . . . . . . . . . . . . 1 FOLLOW 10 | . . . . . . . . . . . . . . 1 . . 1 . 1 . 2 . 1 . . . . . 1 . . 3 AID 3 | . . . . 1 . . . . . . 1 1 . . . . . . . . . . . . . . . . . . . . EXPLORE 8 | . . . . 5 . 3 . . . . . . . . . . . . . . . . . . . . . . . . . . RETURN 15 | . . . . . . 2 . . . . . . . . . . . . . . . . . . . . . . . . . 13 Ally Attacks 529 | . . . . 66 . . . 12 . 109 24 20 87 5 . . . 26 40 . . 3 . . . . . . 22 . . 115 Total Damage 18582 | . . . . 691 . . . 149 . 2719 1088 747 3425 91 . . . 572 1779 . . 89 . . . . . . 1534 . . 5698 Kills 104 | . . . . 11 . . . . . 13 5 4 23 . . . . 4 10 . . . . . . . . . 8 . . 26 Allies Corrupted 7 | . . . . . . . . . . 1 . . . . . . . . 2 . . . . . . . . . 1 . . 3 Allies Melted 1 | . . . . . . . . . . . . . 1 . . . . . . . . . . . . . . . . . . . Intel | -11 -10 -10 -9 -9 -9 -9 -6 -6 -6 -6 -6 -6 -6 -5 -5 -5 -5 -5 -5 -4 -4 -4 -4 -4 -4 -4 -3 -3 -3 -2 -2 -2 ------- Run | Yrd Mat Min Mat Sto Rec Scr Fac Was Fac Ext Cet Arc Hub Fac Was Fac Upp Upp War Pro Fac Was Fac Upp Upp Zhi Pro Res Tes Res Qua Frg Active Infowar (turns) 21012 | . 5 1 106 . . 80 2228 . 1278 888 . 2 510 1689 31 2188 520 377 812 58 1730 40 1176 101 250 60 71 698 1423 744 976 2970 Optics 3571 | . . . 106 . . . . . . . . . . . . 792 . . . . . . . . . . . . 451 744 976 502 Sensors 20220 | . . . . . . 80 2158 . 1271 823 . . 379 1586 31 2187 520 377 812 58 1730 40 1176 101 250 60 71 698 1399 709 959 2745 Traps 110 | . . 1 . . . . 109 . . . . . . . . . . . . . . . . . . . . . . . . . T.N.C. 132 | . . . . . . . 132 . . . . . . . . . . . . . . . . . . . . . . . . . Cloaking 965 | . . . . . . . . . . . . . . . . 12 . . . . . . . . . . . . 20 . 431 502 Jamming 2693 | . . . . . . . . . . . . . . . . 2 . . . . 12 . . . . . . . 1046 544 131 958 ECM 3895 | . 5 . . . . . 310 . 48 237 . 2 510 789 . 477 22 35 . . 588 40 307 . 25 . . 1 184 155 . 160 Robot Analysis Total 13 | . . . 2 . . . . . . . . . . . . 3 . . . . . . 1 . . 4 . . . . . 3 Derelict Logs Recovered 7 | . . . . . . . . . . . . . . . . . 2 2 . 1 . . . 1 1 . . . . . . . Drone Launches 52 | . . . . 21 . 4 . . . . . . . . . . . . . . . . . . . . . . . . . 27 Drone Recoveries 34 | . . . . 8 . 4 . . . . . . . . . . . . . . . . . . . . . . . . . 22 Exploration | -11 -10 -10 -9 -9 -9 -9 -6 -6 -6 -6 -6 -6 -6 -5 -5 -5 -5 -5 -5 -4 -4 -4 -4 -4 -4 -4 -3 -3 -3 -2 -2 -2 ------------- Run | Yrd Mat Min Mat Sto Rec Scr Fac Was Fac Ext Cet Arc Hub Fac Was Fac Upp Upp War Pro Fac Was Fac Upp Upp Zhi Pro Res Tes Res Qua Frg Turns Passed 35674 | . 1705 1113 2215 1961 1826 2779 2410 66 1431 1000 277 234 547 1885 31 2204 520 377 812 58 1820 40 1336 101 268 62 71 792 1424 744 976 4589 Spaces Moved 43935 | 1 678 651 1160 704 731 1332 4721 207 2737 1154 201 73 889 3025 114 3380 841 735 886 256 3504 136 2475 353 413 163 338 1757 1760 1337 2031 5192 Core 5 | . . . . . . . 1 . . . . . . 3 . . . . . . . . . . . . . . . . . 1 Treads 4800 | . 568 651 1160 704 731 986 . . . . . . . . . . . . . . . . . . . . . . . . . . Legs 111 | 1 110 . . . . . . . . . . . . . . . . . . . . . . . . . . . . . . . Wheels . | . . . . . . . . . . . . . . . . . . . . . . . . . . . . . . . . . Hover 4152 | . . . . . . . . . . . . . . . . . . . . . . . . . . . . . . . . 4152 Flight 34867 | . . . . . . 346 4720 207 2737 1154 201 73 889 3022 114 3380 841 735 886 256 3504 136 2475 353 413 163 338 1757 1760 1337 2031 1039 Fastest Speed 5 | 120 120 145 150 160 240 34 26 26 17 17 26 26 17 5 24 5 24 20 11 11 6 6 6 20 6 20 20 6 13 6 6 6 Average Speed 45 | 120 203 159 153 228 240 186 30 28 27 26 27 26 25 24 24 24 24 24 24 22 19 19 19 20 19 20 20 23 25 23 23 35 Slowest Speed 480 | 120 480 160 160 240 240 240 350 29 29 112 102 26 26 400 24 99 24 103 103 23 23 20 20 20 20 20 20 97 26 26 97 150 Overloaded Moves 433 | . . . . . . . 21 7 44 5 . . 1 27 . 47 . 2 21 6 17 4 21 . 17 . . 4 10 54 34 91 Propulsion Burnouts . | . . . . . . . . . . . . . . . . . . . . . . . . . . . . . . . . . Robots Hopped 146 | . . . . . . . 30 . 28 6 . . 11 9 . 10 . . . . 17 . 9 . 2 . . 6 3 12 . 3 Potential Cave-ins . | . . . . . . . . . . . . . . . . . . . . . . . . . . . . . . . . . Cave-ins Triggered . | . . . . . . . . . . . . . . . . . . . . . . . . . . . . . . . . . Teleports 2 | . . . . . . . . . . . . . . . . . . . . . . . . . . . . . . . . 2 Exploration Rate (%) 67 | 1 80 96 93 91 98 94 52 84 37 83 67 77 38 61 96 67 77 72 88 47 62 91 49 58 41 60 60 35 89 27 94 72 Regions Visited 32 Branch Regions 19 Pre-discovered Areas 16 | . 3 . 3 . 6 . 1 . . . . . . . . . . . . . . . . . . 3 . . . . . . Known Exits Taken 22 | . . 1 1 . 1 . . . 1 1 1 1 1 . . 1 1 1 1 1 . . 1 1 1 1 1 1 1 1 1 . Unknown Exits Taken 4 | 1 1 . . 1 . 1 . . . . . . . . . . . . . . . . . . . . . . . . . . Scrap Searched 20 | . . 1 . . . 3 . . . . . . . . . . 3 3 . 3 . . . 3 1 . 3 . . . . . Spaces Dug 508 | . . 7 15 9 . . 36 . 31 1 . . 14 62 . 56 6 9 . . 72 . 71 3 3 . . 25 14 39 21 14 Terrain Destroyed 795 | . 4 9 39 15 . . 111 . 34 3 5 . 17 65 . 59 6 9 1 . 93 . 85 4 3 . . 33 27 42 28 103 Melee 459 | . . . . . . . 32 . 31 1 . . 14 62 . 56 6 2 . . 71 . 71 3 3 . . 24 13 37 21 12 Projectile 98 | . . . . . . . . . 3 2 5 . 3 3 . 3 . . 1 . 22 . 14 1 . . . 9 14 5 7 6 AOE 238 | . 4 9 39 15 . . 79 . . . . . . . . . . 7 . . . . . . . . . . . . . 85 Terrain Rammed . | . . . . . . . . . . . . . . . . . . . . . . . . . . . . . . . . . Walls Destroyed . | . . . . . . . . . . . . . . . . . . . . . . . . . . . . . . . . . Machines Disabled . | . . . . . . . . . . . . . . . . . . . . . . . . . . . . . . . . . Actions | -11 -10 -10 -9 -9 -9 -9 -6 -6 -6 -6 -6 -6 -6 -5 -5 -5 -5 -5 -5 -4 -4 -4 -4 -4 -4 -4 -3 -3 -3 -2 -2 -2 --------- Run | Yrd Mat Min Mat Sto Rec Scr Fac Was Fac Ext Cet Arc Hub Fac Was Fac Upp Upp War Pro Fac Was Fac Upp Upp Zhi Pro Res Tes Res Qua Frg Total 57066 | . 848 698 1403 949 767 1625 5507 212 3301 1813 403 280 1148 4018 119 4591 1144 920 1482 255 4372 148 3137 376 589 181 341 2062 2649 1644 2463 7621 Wait 10205 | . 46 12 30 124 4 250 579 6 451 600 178 197 230 821 . 1034 294 160 566 . 667 13 494 15 171 . 2 207 807 219 340 1688 Move 43627 | . 677 650 1159 703 730 1331 4662 206 2685 1143 200 72 866 3008 113 3360 840 734 885 255 3470 135 2457 352 408 162 337 1744 1754 1313 2030 5186 Hop 133 | . . . . . . . 29 . 23 4 . . 11 8 . 9 . . . . 17 . 8 . 2 . . 6 2 11 . 3 Pick Up 254 | . 15 3 22 16 2 16 16 . 8 3 . . . 9 3 13 1 . 3 . 9 . 7 2 . 1 1 10 5 4 14 71 Fast Attach 220 | . 11 1 13 8 1 8 31 . 17 3 2 4 3 13 . 21 . 2 5 . 10 . 10 . . 2 . 7 . 2 5 41 Attach 111 | . 4 . 2 . 1 5 9 . 2 2 . . . 8 . 7 . 1 1 . 2 . 2 . . . . 6 3 1 2 53 Detach 48 | . 3 . . 1 . 1 5 . 1 1 1 . 1 10 . 5 . 1 . . 1 . 1 . . . . 2 . . . 14 Swap 434 | . 5 6 24 16 3 4 35 . 11 5 3 . 4 12 . 22 1 4 3 . 44 . 28 2 4 4 . 27 28 19 15 105 Drop 349 | . 7 7 40 19 6 10 35 . 20 6 2 3 3 7 3 17 . 1 7 . 11 . 8 1 . 5 1 9 4 5 18 94 Fire 451 | . 77 15 106 47 17 . 13 . 7 6 17 . 5 5 . 3 . 1 1 . 22 . 14 1 . . . 9 14 5 7 59 Melee 990 | . . . . 5 . . 78 . 49 17 . 4 25 90 . 89 8 7 . . 119 . 89 3 4 7 . 31 29 65 32 239 Ram . | . . . . . . . . . . . . . . . . . . . . . . . . . . . . . . . . . Kick 2 | . 2 . . . . . . . . . . . . . . . . . . . . . . . . . . . . . . . Crush 19 | . 1 4 7 4 3 . . . . . . . . . . . . . . . . . . . . . . . . . . . Escape Stasis 142 | . . . . . . . . . 27 18 . . . 25 . 11 . . . . . . 19 . . . . 4 . . . 38 Rewire 30 | . . . . . . . . . . 5 . . . 2 . . . 9 11 . . . . . . . . . 3 . . . Trap 15 | . . . . . . . 15 . . . . . . . . . . . . . . . . . . . . . . . . . Miscellaneous 36 | . . . . 6 . . . . . . . . . . . . . . . . . . . . . . . . . . . 30 Route ------- -11/Scrapyard -10/Materials (discovered 6 exits: *Mat x3 / *Min x2 / Sub) -10/Mines (discovered 4 exits: *Mat x2 / [*Exi] / *Sub) -9/Materials (discovered 5 exits: *Mat x3 / [*Min] / *Sto) -9/Storage (discovered 2 exits: *Mat / *Rec) -9/Recycling (discovered 2 exits: [*Fac] / *Scr) -9/Scraptown (discovered 2 exits: *Fac x2) -6/Factory (discovered 4 exits: *Low x2 / *Ext x2) -6/Waste -6/Factory (discovered 5 exits: *Fac / *Low x2 / *Ext x2) -6/Extension (discovered 2 exits: *Fac / *Cet) -6/Cetus -6/Archives (discovered 2 exits: *Hub x2) -6/Hub_04(d) (discovered 4 exits: *Fac x4) -5/Factory (discovered 6 exits: *Fac x4 / *Upp x2) -5/Waste -5/Factory (discovered 6 exits: *Fac x4 / *Upp x2) -5/Upper Caves -5/Upper Caves (discovered 2 exits: *Fac / *War) -5/Warlord -4/Proximity Caves -4/Factory (discovered 7 exits: *Res x4 / *Upp x2 / Arm) -4/Waste -4/Factory (discovered 7 exits: *Res x4 / *Upp x2 / Arm) -4/Upper Caves -4/Upper Caves -4/Zhirov -3/Proximity Caves -3/Research (discovered 4 exits: *Res x2 / *Tes x2) -3/Testing -2/Research (discovered 2 exits: *Qua x2) -2/Quarantine (discovered 3 exits: [*Acc] / *Sec / *Frg) -2/Protoforge History --------- Turn | Location | Event 1 | -11/Scrapyard | Discovered new exit (range 0) 1 | -11/Scrapyard | Entered Materials 302 | -10/Materials | Build established: Mutant 323 | -10/Materials | Learned Storage trap positions 386 | -10/Materials | Identified exit to Materials 403 | -10/Materials | Discovered new exit (range 15) 645 | -10/Materials | Discovered new exit (range 14) 693 | -10/Materials | Discovered exit to Materials (range 13) 797 | -10/Materials | Repaired Lgt. Treads 806 | -10/Materials | Discovered exit to Materials (range 3) 879 | -10/Materials | Core integrity fell below 50% 1212 | -10/Materials | Learned location of Mines (-10) 1244 | -10/Materials | Learned location of Mines (-9) 1300 | -10/Materials | Identified exit to Subcaves 1300 | -10/Materials | Learned location of 1 exit from Materials 1343 | -10/Materials | Learned Storage stockpile data 1706 | -10/Materials | Entered Mines 1720 | -10/Mines | Met a Derelict bent on vengeance 1849 | -10/Mines | A weapon hastily lodged in a ceiling crevice suddenly fell to the ground 1913 | -10/Mines | Deemed a non-threat by the Exiles lab entrance 1914 | -10/Mines | Discovered new exit (range 5) 2334 | -10/Mines | Found a hidden stash of uninstalled traps 2345 | -10/Mines | Discovered exit to Subcaves (range 6) 2542 | -10/Mines | Core integrity fell below 20% 2773 | -10/Mines | Met a Derelict shopkeep closing up shop 2819 | -10/Mines | Entered Materials 2819 | -9/Materials | Evolved 2 slots: Propulsion x1, Utility x1 2820 | -9/Materials | Identified exit to Materials 2820 | -9/Materials | Identified exit to Storage 3290 | -9/Materials | Discovered new exit (range 8) 3438 | -9/Materials | Build established: Scavenger-Mutant 3753 | -9/Materials | Build established: Mutant 4095 | -9/Materials | Learned location of Storage (-9) 4605 | -9/Materials | Build established: Scavenger-Mutant 5034 | -9/Materials | Entered Storage 5036 | -9/Storage | Loaded intel: 8 trap records 5182 | -9/Storage | Core integrity fell below 50% 5331 | -9/Storage | Lost 6 allies 5502 | -9/Storage | Build established: Mutant 5836 | -9/Storage | Assisted by bots powering up and referring to "LRC-V3" 5949 | -9/Storage | Lost 3 allies 6138 | -9/Storage | Build established: Commander-Mutant 6584 | -9/Storage | Build established: Mutant 6904 | -9/Storage | Met a pair of Derelict thieves 6981 | -9/Storage | Used back door to open Recycling access 6981 | -9/Storage | Discovered new exit (range 5) 6995 | -9/Storage | Entered Recycling 7017 | -9/Recycling | Lost 5 allies 7321 | -9/Recycling | Discovered new exit (range 16) 8080 | -9/Recycling | Learned 2 Materials zone layouts 8145 | -9/Recycling | Learned location of 1 exit from Storage 8283 | -9/Recycling | Learned Materials emergency access door positions 8349 | -9/Recycling | Identified exit to Scraptown 8764 | -9/Recycling | Scanned before Scraplab entrance 8800 | -9/Recycling | Entered Scraplab 8821 | -9/Recycling | Entered Scraptown 8821 | -9/Scraptown | System corruption cleaned by C-Scrubber 8954 | -9/Scraptown | Discovered new exit (range 77) 9235 | -9/Scraptown | Heard Great Nut preacher, LISTEN AND RECITE! 9610 | -9/Scraptown | Visited IN-MT5's Study 9658 | -9/Scraptown | Visited Cyclists 9733 | -9/Scraptown | Visited UFD Registry 9760 | -9/Scraptown | Visited Artisan Demo Area 9839 | -9/Scraptown | Visited Assassins FH 10058 | -9/Scraptown | Registered with UFD as "Plasmawalker" 10132 | -9/Scraptown | Visited Science Guys 10218 | -9/Scraptown | Visited A0-MCA Data Center 10312 | -9/Scraptown | Visited Research Penetration Think Tank 10353 | -9/Scraptown | Visited Derelict Rescue Squad 10377 | -9/Scraptown | Found DRS Beacon 10424 | -9/Scraptown | Visited Supply Room 10462 | -9/Scraptown | Visited Supply Room 10498 | -9/Scraptown | Visited Observation Area 10573 | -9/Scraptown | Visited Curators Association 10611 | -9/Scraptown | Visited Chapter 10 11343 | -9/Scraptown | Given a C+ rating by A0-MCA 11349 | -9/Scraptown | Found A0-MCA's Component Scanner 11429 | -9/Scraptown | Released all parts (9) 11555 | -9/Scraptown | Met Optimus 11555 | -9/Scraptown | Accepted into 0bPrime 11576 | -9/Scraptown | Discovered new exit (range 3) 11600 | -9/Scraptown | Entered Factory 11600 | -6/Factory | Evolved 6 slots: Propulsion x1, Utility x5 11708 | -6/Factory | Discovered new exit (range 13) 11716 | -6/Factory | Identified exit to Lower Caves 11847 | -6/Factory | Discovered new exit (range 15) 12107 | -6/Factory | Build established: Hacker-Sprinter 12387 | -6/Factory | Cargo convoy interrupted 12462 | -6/Factory | Found Prototype Hackware 12645 | -6/Factory | Found PL-3XN's Ring of Power 12958 | -6/Factory | Loaded intel: 8 recycling unit locations 13052 | -6/Factory | Identified Exp. Hacking Suite 13106 | -6/Factory | Fabricated Exp. Hacking Suite (x1) 13226 | -6/Factory | Learned location of Protoforge (-2) 13290 | -6/Factory | Identified exit to Extension 13342 | -6/Factory | Repaired Imp. Flight Unit? 13606 | -6/Factory | Fabricated Exp. Hacking Suite (x1) 13850 | -6/Factory | Garrison activated, responded to threat 13872 | -6/Factory | Fabricated Exp. Hacking Suite? 14010 | -6/Factory | Sucked down chute 14010 | -6/Factory | Entered Waste 14011 | -6/Waste | Met a frightened Derelict 14012 | -6/Waste | Spotted C-40 Crusher 14014 | -6/Waste | Spotted C-40 Crusher 14016 | -6/Waste | Spotted C-40 Crusher 14025 | -6/Waste | Spotted C-40 Crusher 14026 | -6/Waste | Spotted C-40 Crusher 14058 | -6/Waste | Spotted C-40 Crusher 14064 | -6/Waste | Discovered new exit (range 16) 14076 | -6/Waste | Identified exit to Factory 14076 | -6/Waste | Entered Factory 14144 | -6/Factory | Spotted B-75 Beast 14206 | -6/Factory | Build established: Wizard-Sprinter 14243 | -6/Factory | Fabricated Cld. Cesium-ion Thruster? 14273 | -6/Factory | Loaded intel: 8 recycling unit locations 14720 | -6/Factory | Fabricated Cld. Cesium-ion Thruster (x1) 14783 | -6/Factory | Discovered new exit (range 14) 14863 | -6/Factory | Identified exit to Factory 15004 | -6/Factory | Repaired Lyr. Light Armor Plating 15397 | -6/Factory | Fabricated Cld. Cesium-ion Thruster (x1) 15451 | -6/Factory | Fabricated Cld. Cesium-ion Thruster (x1) 15507 | -6/Factory | Entered Extension 15557 | -6/Extension | Rescued a captive Derelict 15558 | -6/Extension | Rescued a captive Derelict 15579 | -6/Extension | Rescued a captive Derelict 15580 | -6/Extension | Rescued a captive Derelict 15605 | -6/Extension | Rescued a captive Derelict 15627 | -6/Extension | Rescued a captive Derelict 15635 | -6/Extension | Rescued a captive Derelict 15656 | -6/Extension | Rescued a captive Derelict 15657 | -6/Extension | Rescued a captive Derelict 15909 | -6/Extension | Spotted B-75 Beast 15914 | -6/Extension | Destroyed B-75 Beast 15939 | -6/Extension | Lost 6 allies 15988 | -6/Extension | Spotted B-75 Beast 15996 | -6/Extension | Rescued a captive Derelict 16000 | -6/Extension | Rescued a captive Derelict 16015 | -6/Extension | Rescued a captive Derelict 16052 | -6/Extension | Lost 4 allies 16104 | -6/Extension | Rescued A7 16279 | -6/Extension | Loaded intel: 2 recycling unit locations 16438 | -6/Extension | Discovered exit to Factory (range 10) 16438 | -6/Extension | Discovered new exit (range 6) 16440 | -6/Extension | Identified exit to Cetus 16507 | -6/Extension | Entered Cetus 16507 | -6/Cetus | Accompanied by 5 allies (A7) 16512 | -6/Cetus | Acquired a Cetus Manufacturing Module code from A7 16512 | -6/Cetus | Spotted Cetus Guard 16527 | -6/Cetus | Allies destroyed Cetus Guard 16528 | -6/Cetus | Spotted Cetus Guard 16528 | -6/Cetus | Spotted Cetus Guard 16528 | -6/Cetus | Spotted Cetus Guard 16539 | -6/Cetus | Allies destroyed Cetus Guard 16547 | -6/Cetus | Allies destroyed Cetus Guard 16556 | -6/Cetus | Allies destroyed Cetus Guard 16564 | -6/Cetus | Lost 3 allies 16577 | -6/Cetus | Started Cetus Manufacturing Module 16602 | -6/Cetus | Manufactured an Enhanced Grunt 16627 | -6/Cetus | Manufactured an Enhanced Grunt 16652 | -6/Cetus | Manufactured an Enhanced Grunt 16663 | -6/Cetus | Discovered new exit (range 16) 16667 | -6/Cetus | Identified exit to Archives 16677 | -6/Cetus | Manufactured an Enhanced Grunt 16702 | -6/Cetus | Manufactured an Enhanced Grunt 16784 | -6/Cetus | Entered Archives 16784 | -6/Archives | Accompanied by 7 allies (A7) 16984 | -6/Archives | Discovered new exit (range 15) 16986 | -6/Archives | Discovered new exit (range 15) 16996 | -6/Archives | Identified exit to Hub_04(d) 17018 | -6/Archives | Entered Hub_04(d) 17018 | -6/Hub_04(d) | Accompanied by 4 allies 17031 | -6/Hub_04(d) | Discovered exit to Factory (range 14) 17130 | -6/Hub_04(d) | Spotted B-75 Beast 17173 | -6/Hub_04(d) | Garrison activated, responded to threat 17329 | -6/Hub_04(d) | Lost 4 allies 17407 | -6/Hub_04(d) | Network Hub disabled 17495 | -6/Hub_04(d) | Network Hub disabled 17542 | -6/Hub_04(d) | Network Hub disabled 17565 | -6/Hub_04(d) | Entered Factory 17565 | -5/Factory | Evolved 2 slots: Propulsion x1, Utility x1 17697 | -5/Factory | Fabricated Lrn. Sensor Array? 17773 | -5/Factory | Discovered new exit (range 5) 17774 | -5/Factory | Identified exit to Factory 17829 | -5/Factory | Repaired Cld. Cesium-ion Thruster? 17852 | -5/Factory | Repaired Mni. Grenade Launcher 17893 | -5/Factory | Repaired Cld. Cesium-ion Thruster? 18040 | -5/Factory | Loaded intel: 8 recycling unit locations 18088 | -5/Factory | Identified exit to Upper Caves 18522 | -5/Factory | Lost 3 parts (1p1n1u) 19011 | -5/Factory | Repaired Cld. Cesium-ion Thruster 19067 | -5/Factory | Repaired Centrium Medium Armor Plating 19294 | -5/Factory | Spotted B-75 Beast 19450 | -5/Factory | Sucked down chute 19450 | -5/Factory | Entered Waste 19460 | -5/Waste | Spotted C-40 Crusher 19461 | -5/Waste | Spotted C-40 Crusher 19462 | -5/Waste | Spotted C-40 Crusher 19470 | -5/Waste | Spotted C-40 Crusher 19475 | -5/Waste | Spotted C-40 Crusher 19478 | -5/Waste | Discovered new exit (range 13) 19478 | -5/Waste | Spotted C-40 Crusher 19481 | -5/Waste | Identified exit to Factory 19481 | -5/Waste | Entered Factory 19744 | -5/Factory | Repaired Broken Adv. Cloaking Device? 19761 | -5/Factory | Fabricated Exp. Signal Interpreter? 19762 | -5/Factory | Repaired Adv. Transmission Jammer 19831 | -5/Factory | Repaired Enh. Nova Cannon? 19905 | -5/Factory | Fabricated Exp. Hacking Suite (x1) 20062 | -5/Factory | Spotted B-75 Beast 20230 | -5/Factory | Loaded intel: 8 recycling unit locations 20506 | -5/Factory | Repaired Cld. Cesium-ion Thruster 20555 | -5/Factory | Repaired Kinetic Spear 20576 | -5/Factory | Repaired Imp. Light Armor Plating 20617 | -5/Factory | Repaired Cld. Cesium-ion Thruster 20812 | -5/Factory | Fabricated Cld. Cesium-ion Thruster? 21039 | -5/Factory | Fabricated Cld. Cesium-ion Thruster? 21094 | -5/Factory | Build established: Wizard-Scout 21280 | -5/Factory | Repaired Graphene Brace 21300 | -5/Factory | Repaired Imp. Light Armor Plating 21391 | -5/Factory | Fabricated Exp. Utility Shielding? 21458 | -5/Factory | Fabricated Cld. Field Propulsion Drive (x1) 21685 | -5/Factory | Entered Upper Caves 21685 | -5/Upper Caves | Accompanied by 1 ally 21727 | -5/Upper Caves | Entered an active Warlord outpost 21743 | -5/Upper Caves | Learned 8 Factory zone layouts 21754 | -5/Upper Caves | Learned Factory security intel 21759 | -5/Upper Caves | Encountered a Warlord checkpoint 21786 | -5/Upper Caves | Learned Factory terminal intel 22014 | -5/Upper Caves | Build established: Wizard-Sprinter 22159 | -5/Upper Caves | Discovered new exit (range 15) 22194 | -5/Upper Caves | Identified exit to Upper Caves 22205 | -5/Upper Caves | Entered another Upper Caves area 22205 | -5/Upper Caves | Accompanied by 1 ally 22206 | -5/Upper Caves | Learned Factory terminal intel 22227 | -5/Upper Caves | Learned Factory stockpile data 22239 | -5/Upper Caves | Found Alien Artifact 22239 | -5/Upper Caves | Identified Core Expander 22239 | -5/Upper Caves | Installed Core Expander, added new Weapon slot 22534 | -5/Upper Caves | Discovered new exit (range 5) 22537 | -5/Upper Caves | Identified exit to Warlord 22582 | -5/Upper Caves | Entered Warlord 22582 | -5/Warlord | Accompanied by 4 allies 22784 | -5/Warlord | Visited the Vortex Lab 22785 | -5/Warlord | Found Prototype Energy Cannon 22785 | -5/Warlord | Identified Vortex Driver 22788 | -5/Warlord | Found Prototype Energy Gun 22788 | -5/Warlord | Identified Vortex Shotgun 22797 | -5/Warlord | Warlord's base attacked by MAIN.C 22814 | -5/Warlord | Found Prototype Hackware 22814 | -5/Warlord | Identified System Mapper 22821 | -5/Warlord | Found Exp. Cloaking Device 22971 | -5/Warlord | Opened side exit 23054 | -5/Warlord | Lost 3 allies 23122 | -5/Warlord | Lost 3 allies 23147 | -5/Warlord | Warlord forces counterattacked 23353 | -5/Warlord | Lost 28 allies 23392 | -5/Warlord | Discovered new exit (range 14) 23394 | -5/Warlord | Identified exit to Proximity Caves 23394 | -5/Warlord | Entered Proximity Caves 23404 | -4/Proximity Caves | Learned 8 Research zone layouts 23452 | -4/Proximity Caves | Entered Factory 23452 | -4/Factory | Evolved 2 slots: Power x1, Propulsion x1 23453 | -4/Factory | Identified exit to Research 23456 | -4/Factory | Loaded intel: 26 terminal locations 23465 | -4/Factory | Identified exit to Upper Caves 23465 | -4/Factory | Identified exit to Armory 23816 | -4/Factory | Spotted B-86 Titan 24150 | -4/Factory | Repaired Centrium Medium Armor Plating 24191 | -4/Factory | Repaired Cld. Cesium-ion Thruster 24233 | -4/Factory | Repaired Cld. Cesium-ion Thruster 24520 | -4/Factory | Fabricated Nanosword (x1) 24528 | -4/Factory | Loaded intel: 8 recycling unit locations 24906 | -4/Factory | Fabricated Nanosword (x1) 24919 | -4/Factory | Learned Quarantine emergency access door positions 24973 | -4/Factory | Learned Factory stockpile data 25019 | -4/Factory | Learned location of 2 exits from Upper Caves 25057 | -4/Factory | Learned Factory terminal intel 25086 | -4/Factory | Learned Quarantine scanalyzer intel 25129 | -4/Factory | Learned 2 Upper Caves zone layouts 25163 | -4/Factory | Learned location of 1 exit from Armory 25272 | -4/Factory | Manually triggered Chute Trap 25272 | -4/Factory | Sucked down chute 25272 | -4/Factory | Entered Waste 25273 | -4/Waste | Met a frightened Derelict 25273 | -4/Waste | Identified exit to Factory 25275 | -4/Waste | Spotted C-40 Crusher 25279 | -4/Waste | Spotted C-40 Crusher 25287 | -4/Waste | EMP discharged 25288 | -4/Waste | Spotted C-40 Crusher 25291 | -4/Waste | Spotted C-40 Crusher 25291 | -4/Waste | Spotted C-40 Crusher 25305 | -4/Waste | Spotted C-40 Crusher 25312 | -4/Waste | Entered Factory 25315 | -4/Factory | Loaded intel: 26 terminal locations 25675 | -4/Factory | Loaded intel: 8 recycling unit locations 26010 | -4/Factory | Fabricated Nanosword? 26011 | -4/Factory | Fabricated Quantum Shading Machine (x1) 26313 | -4/Factory | Repaired Lrn. Sensor Array 26313 | -4/Factory | Fabricated Cld. Impulse Thruster? 26357 | -4/Factory | Fabricated Nanosword? 26648 | -4/Factory | Entered Upper Caves 26649 | -4/Upper Caves | Identified exit to Upper Caves 26725 | -4/Upper Caves | Learned location of 1 exit from Proximity Caves 26749 | -4/Upper Caves | Entered another Upper Caves area 26750 | -4/Upper Caves | Identified exit to Zhirov 26992 | -4/Upper Caves | Learned Research emergency access door positions 27017 | -4/Upper Caves | Entered Zhirov 27017 | -4/Zhirov | Discovered new exit (range 3) 27021 | -4/Zhirov | Met Zhirov 27026 | -4/Zhirov | Found Alien Artifact 27026 | -4/Zhirov | Identified Integrated Dissipator 27026 | -4/Zhirov | Installed Integrated Dissipator, increased core heat dissipation (+20) 27066 | -4/Zhirov | Found Alien Artifact 27071 | -4/Zhirov | Learned location of Quarantine (-2) 27071 | -4/Zhirov | Learned location of Command (-1) 27073 | -4/Zhirov | Zhirov requested help retrieving the SGEMP Prototype 27079 | -4/Zhirov | Identified exit to Proximity Caves 27079 | -4/Zhirov | Entered Proximity Caves 27150 | -3/Proximity Caves | Entered Research 27150 | -3/Research | Evolved 2 slots: Utility x1, Weapon x1 27151 | -3/Research | Identified exit to Testing 27151 | -3/Research | Identified exit to Research 27281 | -3/Research | Identified Transdimensional Reconstructor 27443 | -3/Research | Found Spectral Analyzer 27472 | -3/Research | Fabricated Cld. Impulse Thruster (x1) 27509 | -3/Research | Fabricated Cld. Impulse Thruster? 27551 | -3/Research | Fabricated Nanosword? 27621 | -3/Research | Found Gamma Bomb Array 27702 | -3/Research | Repaired Centrium Medium Armor Plating? 27812 | -3/Research | Loaded intel: 5 recycling unit locations 27909 | -3/Research | Fabricated Femtoactuators? 27942 | -3/Research | Entered Testing 28013 | -3/Testing | Fabricated Exp. Actuator Array? 28107 | -3/Testing | Fabricated Exp. Actuator Array? 28273 | -3/Testing | Protovariant out of control (PP-18GTJ8OIVO) 28413 | -3/Testing | Found SHELL Armor 28472 | -3/Testing | Garrison activated, responded to threat 28713 | -3/Testing | Rewired PL-2PZSI6NDYF 29157 | -3/Testing | Found Mni. Smartbomb Launcher 29333 | -3/Testing | Build established: Machinist-Ninja 29366 | -3/Testing | Entered Research 29366 | -2/Research | Evolved 2 slots: Propulsion x1, Weapon x1 29614 | -2/Research | Fabricated Jamming Amplifier (x2) 29880 | -2/Research | Identified exit to Quarantine 29890 | -2/Research | Spotted B-90 Cyclops 30026 | -2/Research | Found Exp. Transmission Jammer 30082 | -2/Research | Fabricated Exp. Core Analyzer (x1) 30110 | -2/Research | Entered Quarantine 30112 | -2/Quarantine | Loaded intel: 3 scanalyzer locations 30119 | -2/Quarantine | Cryocooling Duct disabled 30134 | -2/Quarantine | Ambient heat levels rising (+20) 30134 | -2/Quarantine | Non-combat units ordered to evacuate 30186 | -2/Quarantine | Found Alien Slashing Weapon 30186 | -2/Quarantine | Identified Sigix Broadsword 30233 | -2/Quarantine | Repaired Cld. Impulse Thruster? 30365 | -2/Quarantine | Repaired Cld. Field Propulsion Drive? 30428 | -2/Quarantine | Repaired Cld. Impulse Thruster? 30445 | -2/Quarantine | Found Alien Artifact 30451 | -2/Quarantine | Identified Phase Redirector 30514 | -2/Quarantine | Repaired Broken Mni. Smartbomb Launcher 30527 | -2/Quarantine | Found Prototype Launcher 30529 | -2/Quarantine | Identified Com. Tesla Bomb Launcher 30601 | -2/Quarantine | Found Alien Artifact 30618 | -2/Quarantine | Identified Hpw. Transdimensional Reconstructor 30633 | -2/Quarantine | Found Alien Artifact 30638 | -2/Quarantine | Found Transdimensional Reconstructor 30723 | -2/Quarantine | Central database locked down 30735 | -2/Quarantine | Discovered new exit (range 15) 30972 | -2/Quarantine | Found Alien Artifact 31073 | -2/Quarantine | Spotted Fortress 31083 | -2/Quarantine | Discovered new exit (range 6) 31083 | -2/Quarantine | Discovered new exit (range 7) 31084 | -2/Quarantine | Identified exit to Protoforge 31085 | -2/Quarantine | Identified exit to Section 7 31086 | -2/Quarantine | Entered Protoforge 31177 | -2/Protoforge | Spotted B-90 Cyclops 31573 | -2/Protoforge | Destroyed 7 combat bots 31617 | -2/Protoforge | Superfortress began startup sequence 31622 | -2/Protoforge | Scanned by Researcher 31627 | -2/Protoforge | Warped through subspace 31631 | -2/Protoforge | Spotted Immortal 31764 | -2/Protoforge | Spotted Decapitator 31764 | -2/Protoforge | Spotted Decapitator 31778 | -2/Protoforge | Destroyed Decapitator 31780 | -2/Protoforge | Destroyed Decapitator 31990 | -2/Protoforge | Found Prototype Device 31990 | -2/Protoforge | Identified Crosscalibrator 32190 | -2/Protoforge | Forge Plexus network access discovered 32198 | -2/Protoforge | Found Cep. Melee Reflex Suite 32201 | -2/Protoforge | Found Cep. Weapon Articulator 32265 | -2/Protoforge | Spotted Decapitator 32265 | -2/Protoforge | Spotted V728-k 32283 | -2/Protoforge | Found Cep. Gyrokinetic System 32286 | -2/Protoforge | Found Cep. Gyrokinetic System 32300 | -2/Protoforge | Found Cep. Combat Aerolev Unit 32313 | -2/Protoforge | Found Faulty Cep. Combat Aerolev Unit 32485 | -2/Protoforge | Found Cep. Antigrav Storage Unit 32490 | -2/Protoforge | Found Cep. Chromion Battery 32492 | -2/Protoforge | Found Cep. Matter Streamer 32494 | -2/Protoforge | Found Cep. NT7 Matterbank 32502 | -2/Protoforge | Found Cep. Chromion Battery 32508 | -2/Protoforge | Found Cep. Chromion Battery 32713 | -2/Protoforge | Spotted V029-h 32728 | -2/Protoforge | Destroyed V029-h 32733 | -2/Protoforge | Found Cep. Projectile Intercept Suite 32735 | -2/Protoforge | Found Cep. Projectile Intercept Suite 32737 | -2/Protoforge | Found Faulty Cep. Phase Shift Module 32739 | -2/Protoforge | Found Faulty Cep. Reaction Jets 32746 | -2/Protoforge | Found Exp. EM Disruption Field 32747 | -2/Protoforge | Found Exp. Remote Shield 32748 | -2/Protoforge | Found Cep. Beam Splitter 32751 | -2/Protoforge | Found Cep. Phase Shift Module 32763 | -2/Protoforge | Found Cep. Hardlight Director 32854 | -2/Protoforge | Spotted AP7-3 32854 | -2/Protoforge | Spotted AP7-3 32926 | -2/Protoforge | System corruption reached 10% 32928 | -2/Protoforge | Destroyed AP7-3 32939 | -2/Protoforge | Destroyed AP7-3 33048 | -2/Protoforge | Found Cep. Impact Drone Bay 33052 | -2/Protoforge | Found Cld. Directed Potential Cannon 33053 | -2/Protoforge | Found Cep. Cloak Mesh 33097 | -2/Protoforge | Spotted Immortal 33225 | -2/Protoforge | Destroyed Immortal 33336 | -2/Protoforge | First assault squad dispatched 33510 | -2/Protoforge | Destroyed Immortal 33719 | -2/Protoforge | Additional patrols dispatched to research labs 33723 | -2/Protoforge | Found Cep. Nanofilaments [Conductive] 33723 | -2/Protoforge | Installed Cep. Nanofilaments [Conductive], 2 resistances modified: TH -15%, EM +25% 33736 | -2/Protoforge | Found Cep. Navigation Harness 33828 | -2/Protoforge | Spotted V748-w 33831 | -2/Protoforge | Spotted V309-u 33832 | -2/Protoforge | Spotted V418-w 33849 | -2/Protoforge | Spotted V810-z 33858 | -2/Protoforge | Destroyed V810-z 33861 | -2/Protoforge | Found Cep. Network Penetrator 33865 | -2/Protoforge | Found Cep. Network Penetrator 34003 | -2/Protoforge | Destroyed 7 combat bots 34069 | -2/Protoforge | Spotted V937-r 34070 | -2/Protoforge | Spotted V385-d 34078 | -2/Protoforge | Spotted V604-y 34120 | -2/Protoforge | Destroyed V604-y 34163 | -2/Protoforge | Found Cep. Zero-point Core 34236 | -2/Protoforge | Build established: Machinist-Gladiator 34541 | -2/Protoforge | Spotted EXE-6 34541 | -2/Protoforge | Spotted EXE-6 34559 | -2/Protoforge | Core integrity fell below 50% 34571 | -2/Protoforge | Destroyed EXE-6 34577 | -2/Protoforge | Destroyed EXE-6 34581 | -2/Protoforge | Found Exp. Core Analyzer 34624 | -2/Protoforge | Found Cep. XC Strikerail 34628 | -2/Protoforge | Found Cep. XC Strikerail 34831 | -2/Protoforge | Core integrity fell below 20% 34873 | -2/Protoforge | Build established: Machinist-Scout 34888 | -2/Protoforge | UFD initiated attack on Protoforge 34888 | -2/Protoforge | Loaded intel: 3 recycling unit locations 34924 | -2/Protoforge | Optimus greeted in Protoforge 34978 | -2/Protoforge | Spotted SKR-2 34978 | -2/Protoforge | Spotted SKR-2 34993 | -2/Protoforge | Found Exp. Melee Analysis Suite 35024 | -2/Protoforge | Met 7R-MNS 35038 | -2/Protoforge | Identified Subatomic Replicator 35038 | -2/Protoforge | Used Subatomic Replicator to replicate Sigix Broadsword 35039 | -2/Protoforge | Scraphulk reinforcements arrived? 35048 | -2/Protoforge | Scraphulk reinforcements arrived? 35067 | -2/Protoforge | Found Cep. XC Strikerail 35069 | -2/Protoforge | Found Exp. Core Analyzer 35073 | -2/Protoforge | Found Cep. XC Strikerail 35088 | -2/Protoforge | Spotted AP7-3 35098 | -2/Protoforge | Spotted AP7-3 35179 | -2/Protoforge | Spotted Striker 35180 | -2/Protoforge | Spotted Executioner 35185 | -2/Protoforge | Build established: Hacker-Gladiator 35198 | -2/Protoforge | Found UFD Drillbomb 35226 | -2/Protoforge | Installed UFD Drillbomb at designated target 35226 | -2/Protoforge | UFD reported confirmed Drillbomb installation 35230 | -2/Protoforge | Found UFD Drillbomb 35261 | -2/Protoforge | Cep. Network Penetrator fried by hacking feedback 35302 | -2/Protoforge | Installed UFD Drillbomb at designated target 35302 | -2/Protoforge | UFD reported confirmed Drillbomb installation 35340 | -2/Protoforge | Spotted Executioner 35340 | -2/Protoforge | Spotted Striker 35342 | -2/Protoforge | Spotted Executioner 35351 | -2/Protoforge | Destroyed Striker 35359 | -2/Protoforge | Destroyed Executioner 35361 | -2/Protoforge | P-80 Master assimilated allied 02F46-D 35361 | -2/Protoforge | Destroyed Executioner 35387 | -2/Protoforge | Destroyed 7 combat bots 35388 | -2/Protoforge | Lost 6 allies 35389 | -2/Protoforge | Found UFD Drillbomb 35441 | -2/Protoforge | Installed UFD Drillbomb at designated target 35441 | -2/Protoforge | UFD reported confirmed Drillbomb installation 35468 | -2/Protoforge | Spotted Executioner 35471 | -2/Protoforge | Destroyed Executioner 35472 | -2/Protoforge | Spotted Executioner 35473 | -2/Protoforge | Spotted Executioner 35475 | -2/Protoforge | Spotted Striker 35475 | -2/Protoforge | Destroyed Executioner 35476 | -2/Protoforge | Spotted Striker 35480 | -2/Protoforge | Spotted Executioner 35487 | -2/Protoforge | Spotted Striker 35489 | -2/Protoforge | Allies destroyed Executioner 35489 | -2/Protoforge | Spotted Executioner 35496 | -2/Protoforge | Allies destroyed Striker 35504 | -2/Protoforge | Destroyed Executioner 35514 | -2/Protoforge | Allies destroyed Striker 35518 | -2/Protoforge | Allies destroyed Executioner 35545 | -2/Protoforge | Destroyed 13 combat bots 35546 | -2/Protoforge | Spotted Striker 35547 | -2/Protoforge | Spotted Striker 35548 | -2/Protoforge | UFD reported confirmed Drillbomb installation 35564 | -2/Protoforge | Lost 3 parts (2n1u) 35571 | -2/Protoforge | Lost 8 allies 35582 | -2/Protoforge | Destroyed Striker 35592 | -2/Protoforge | Spotted Executioner 35597 | -2/Protoforge | Warped through subspace 35601 | -2/Protoforge | Spotted Hotshot 35656 | -2/Protoforge | Spotted Striker 35661 | -2/Protoforge | Spotted Striker 35675 | -2/Protoforge | Destroyed by S-43 Plague with Heavy Machine Gun Last Messages --------------- 35643_ WQIV8 35666_ Martial strike on E-15 Imp. 35667_ Centrium Light Armor Plating blown off. 35667_ Cep. Zero-point Core blown off. 35667_ Cep. Combat Aerolev Unit blown off. 35667_ E-15 Imp destroyed. 35667_ Knocked back. 35668_ Acquired Cep. Zero-point Core. 35669_ Martial strike on X-82 Rainmaker. 35669_ Cep. Beam Splitter destroyed. 35670_ S-43 Plague destroyed. 35670_ Destroyed Lgt. Antimatter Reactor. 35673_ Acquired 4 matter. 35674_ X-82 Rainmaker knocked back. 35674_ Knocked back. Map ----- +----------------------------------------------------+ | ?#????????######### ! % %%* =%% | | ?#????????######?### *%=* ! %= % | | ?#????????######?## = % ]] %/"%%[ | | ?#????????######?### # ## # " =! ^^ " | | ?############????? # # | | ?############??? # " ####" %% | | ?##????????##?? # " # # " | | ?############? " " + # + #""" " | | ?############? "" " # # # #""" | | ?#?????????## "" # # # #""" " | | ?#?????????## """ # # + # # ! | | ?#?????????## """ # ;###"### #########*!! | | ?#?????????## """ + %g########+######### [* | | ?#?????????## " " # ;#????## #==% | | ?#?????????##? " " " ; ????## # !! | | ?#?????????##??? "55 " = ;#????## + [ | | ?#?????????##????? 55 "[% ;#????## # | | ?###+###############"###" s##????###"" ""#### | | ?? sK ##????###""R""#### | | ?? /=##?????## """"#### | | ?? =%!################## | | ?? % ################## | | ################## ####x######Y##?????????## | | ################## # ############# | | ########T######### # "" ############# | | ?? + @ """### | | ?? # """ S"### | | ?? # """ """### " " " " " | | ??? # """ """### " " " " " | | #### ######## ### "=" " " " | | #### """" ###########;+######### * ! | | #### ??"""" ?###########; ######### " " " " " | | ????????""" ] %= " " " " " | | ?????????" ? % " " " " " | | ???????? ?? % % | | ???????? ?? %% | | ?#################################### ##### ### | | ?#??????# ########## ##### ### | | ?#??????# ########## ##### ### | | ????????# ### ###? ?# | | ?#??????# """ "" ### ###? ?# | | ?#??????# """""" ### ###? # | | ?#??????# ### ###? ? # | | ?#??????# ### ###+######? ??# | | ?#??????# ### # ##? ?## | | ????????##########+########### # ""##? ?## | | ##??????# # ""##? ?## | | ##??????# # ""##? ?## | | ##??????# # """" S##? ?## | | ##??????# # """" ""#?????# | +----------------------------------------------------+ Best States ------------- Heat Dissipation 69 Energy Generation 45 Energy Capacity 2850 Matter Stores 500 Matter Capacity 500 Sight Range 24 Robot Scan Range 18 Terrain Scan Density 10 ECM Strength 1 Jamming Range 22 Cloak Strength 6 Additional Mass Support 20 Armor Coverage 900 Resistance: TH 75 Resistance: EM 25 Utility Shielding 90 Melee Speed Boost 50 Phase Shifting 25 Evasion (%) 96 Targeting Accuracy 30 Melee Accuracy 12 Target Analysis 8 Core Analysis 12 Armor Integrity Analysis 40 Recoil Reduction 3 Offensive Hacking 100 Defensive Hacking 14 Authchip Count 3 Trap Extractor Capacity 4 Item Schematics ----------------- Exp. Hacking Suite | -6/Factory | Scanalyzed Cld. Cesium-ion Thruster | -6/Factory | Scanalyzed Lrn. Sensor Array | -6/Extension | Hacked Exp. Signal Interpreter | -5/Factory | Hacked Adv. Transmission Jammer | -5/Factory | Scanalyzed Adv. Cloaking Device | -5/Factory | Scanalyzed Centrium Medium Armor Plating | -5/Factory | Scanalyzed Enh. Nova Cannon | -5/Factory | Scanalyzed Exp. Utility Shielding | -5/Factory | Hacked Cld. Field Propulsion Drive | -5/Factory | Hacked Imp. Armor Integrity Analyzer | -4/Factory | Scanalyzed Exp. Cloaking Device | -4/Factory | Scanalyzed Graphene Brace | -4/Factory | Scanalyzed Impulse Thruster Array | -4/Factory | Hacked Nanosword | -4/Factory | Hacked Quantum Shading Machine | -4/Factory | Hacked Cld. Impulse Thruster | -4/Factory | Hacked Com. Particle Reactor | -4/Factory | Hacked Jamming Amplifier | -4/Factory | Hacked Assault Drone Bay | -4/Zhirov | Free Exp. Heat Sink | -4/Zhirov | Free Exp. Optical Array | -4/Zhirov | Free Imp. Arc Thrower | -4/Zhirov | Free Exp. Actuator Array | -3/Research | Hacked Femtoactuators | -3/Research | Hacked Exp. Core Analyzer | -3/Research | Hacked ECM Suite | -3/Research | Scanalyzed Exp. Sensor Array | -3/Research | Hacked Lgt. Regenerative Plating | -3/Testing | Hacked Imp. KE Penetrator | -3/Testing | Archive Hvy. Wave Gun | -3/Testing | Archive Com. Mass Driver | -3/Testing | Archive Exp. Power Amplifier | -3/Testing | Archive Enh. Multireflex Exoskeleton | -3/Testing | Archive Exp. Coolant Injector | -3/Testing | Archive Spectral Analyzer | -3/Testing | Scanalyzed Exp. Target Analyzer | -3/Testing | Archive Multireflex Exoskeleton | -3/Testing | Archive Adv. Force Booster | -2/Research | Hacked Mni. Smartbomb Launcher | -2/Quarantine | Scanalyzed Centrium Light Armor Plating | -2/Protoforge | Archive Shock Maul | -2/Protoforge | Archive Hds. Centrium Heavy Treads | -2/Protoforge | Archive Hvy. Hardcell Cannon | -2/Protoforge | Archive Adv. Myomer Leg | -2/Protoforge | Archive Com. Tesla Bomb Launcher | -2/Protoforge | Archive Robot Schematics ------------------ K-01 Serf | -3/Testing | Archive A-02 Transporter | -3/Testing | Archive M-30 Cleanser | -3/Testing | Archive A-27 Freighter | -3/Testing | Archive Fabricated ------------ Exp. Hacking Suite | x1 | -6/Factory Exp. Hacking Suite | x1 | -6/Factory | Authchip Exp. Hacking Suite | x1 | -6/Factory | Authchip Cld. Cesium-ion Thruster | x1 | -6/Factory | Authchip Cld. Cesium-ion Thruster | x1 | -6/Factory | Authchip Cld. Cesium-ion Thruster | x1 | -6/Factory | Authchip Cld. Cesium-ion Thruster | x1 | -6/Factory Lrn. Sensor Array | x2 | -5/Factory Exp. Signal Interpreter | x1 | -5/Factory | Authchip Exp. Hacking Suite | x1 | -5/Factory | Authchip Cld. Cesium-ion Thruster | x1 | -5/Factory | Authchip Cld. Cesium-ion Thruster | x1 | -5/Factory | Authchip Exp. Utility Shielding | x1 | -5/Factory | Authchip Cld. Field Propulsion Drive | x1 | -5/Factory Nanosword | x1 | -4/Factory Nanosword | x1 | -4/Factory | Authchip Nanosword | x1 | -4/Factory | Authchip Quantum Shading Machine | x1 | -4/Factory Cld. Impulse Thruster | x1 | -4/Factory | Authchip Nanosword | x1 | -4/Factory | Authchip Cld. Impulse Thruster | x1 | -3/Research | Authchip Cld. Impulse Thruster | x1 | -3/Research | Authchip Nanosword | x1 | -3/Research | Authchip Femtoactuators | x1 | -3/Research | Authchip Exp. Actuator Array | x1 | -3/Testing | Authchip Exp. Actuator Array | x1 | -3/Testing | Authchip Jamming Amplifier | x2 | -2/Research Exp. Core Analyzer | x1 | -2/Research Repaired ---------- Lgt. Treads | 4% | -10/Materials Imp. Flight Unit | 40% | -6/Factory Lyr. Light Armor Plating | 51% | -6/Factory Cld. Cesium-ion Thruster | 42% | -5/Factory Mni. Grenade Launcher | 50% | -5/Factory Cld. Cesium-ion Thruster | 77% | -5/Factory Cld. Cesium-ion Thruster | 28% | -5/Factory Centrium Medium Armor Plating | 29% | -5/Factory Adv. Cloaking Device | 14% | -5/Factory | Broken Adv. Transmission Jammer | 16% | -5/Factory Enh. Nova Cannon | 12% | -5/Factory Cld. Cesium-ion Thruster | 51% | -5/Factory Kinetic Spear | 48% | -5/Factory Imp. Light Armor Plating | 47% | -5/Factory Cld. Cesium-ion Thruster | 73% | -5/Factory Graphene Brace | 32% | -5/Factory Imp. Light Armor Plating | 72% | -5/Factory Centrium Medium Armor Plating | 70% | -4/Factory Cld. Cesium-ion Thruster | 48% | -4/Factory Cld. Cesium-ion Thruster | 48% | -4/Factory Lrn. Sensor Array | 66% | -4/Factory Centrium Medium Armor Plating | 72% | -3/Research Cld. Impulse Thruster | 41% | -2/Quarantine Cld. Field Propulsion Drive | 60% | -2/Quarantine Cld. Impulse Thruster | 66% | -2/Quarantine Mni. Smartbomb Launcher | 99% | -2/Quarantine | Broken Alien Tech Used ----------------- Core Expander Integrated Dissipator Sigix Broadsword High-powered Transdimensional Reconstructor Concept Nanofilaments [Conductive] Subatomic Replicator Transdimensional Reconstructor Achievements -------------- None Challenges ------------ None Game ------ Seed SensorRingNanoactuators Manual? 0 Play Time 10:20:46 Cumulative 232.4 hours Start 2025.05.14 @ 13:31:20 End 2025.05.18 @ 16:40:36 Sessions 9 Manual Loads 0 Difficulty Rogue Special Mode None Game No. 81 Rogue 81 Adventurer 0 Explorer 0 Win Type - Total 4 Types 1/0/2/0/0/0/0/0/0/1 Lore% 71 Gallery% 77 Achievement% 70 Wizard Run 0 Options --------- Layout 1 ASCII 0 Keyboard 1 Movement Arrows Keybinds 0 Fullscreen 2 Font 24/Smallcaps Map View 50x35 Zoom Use 0% Tactical HUD 1 Map Filters NONE Filters NONE Steam 1 RUN: 743a2ca9-bf82-4d4f-86d3-ea7aa21e4bbe